Workbook

Sheet ORÇ. DESON.
L2: GOVERNO DO ESTADO DO PIAUÍ
L3: SECRETARIA DE ESTADO DA ADMINISTRAÇÃO E PREVIDÊNCIA DO PIAUÍ - SEADPREV
L4: UNIDADE DE MODERNIZAÇÃO ADMINISTRATIVA - UMA
L6: MUNICÍPIO: TERESINA - PI
L7: OBRA: REVITALIZAÇÃO: CAMPO DE FUTEBOL
L8: =TODAY() -> 2021-03-04
L10: PLANILHA ORÇAMENTÁRIA (DESONERADA)
L12: DATA-BASE: SINAPI - 01/2021 - Piauí - ORSE DEZEMBRO.2019 | Q12: L.S.= | R12: =L.S.!G49 -> 83.37 | S12: BDI= | T12: ='BDI DESON.'!E34 -> 0.2569
B14: =COLUMN() -> 2 | C14: =COLUMN() -> 3 | D14: =COLUMN() -> 4 | E14: =COLUMN() -> 5 | F14: =COLUMN() -> 6 | G14: =COLUMN() -> 7 | H14: =COLUMN() -> 8 | I14: =COLUMN() -> 9 | J14: =COLUMN() -> 10 | K14: =COLUMN() -> 11 | L14: REFER. | M14: CÓDIGO | N14: ÍTEM | O14: DESCRIÇÃO | P14: UNIDADE | Q14: QUANT. | R14: CUSTO UNITÁRIO | S14: CUSTO COM BDI | T14: CUSTO PARCIAL
L15: 1 | O15: ADMINISTRAÇÃO LOCAL DA OBRA | T15: =SUM(T16:T17) -> 4952.88 | U15: =T15 / 114551.27 -> 0.0432
L16: 1.1 | M16: 90777 | N16: SINAPI | O16: ENGENHEIRO CIVIL DE OBRA JUNIOR COM ENCARGOS COMPLEMENTARES | P16: H | Q16: 30 | R16: 79.91 | S16: =ROUND(R16 * (1 + 25.69 / 100), 2) -> 100.44 | T16: =ROUND(Q16 * S16, 2) -> 3013.2 | U16: 0.0263
L17: 1.2 | M17: 90780 | N17: SINAPI | O17: MESTRE DE OBRAS COM ENCARGOS COMPLEMENTARES | P17: H | Q17: 48 | R17: 32.15 | S17: =ROUND(R17 * (1 + 25.69 / 100), 2) -> 40.41 | T17: =ROUND(Q17 * S17, 2) -> 1939.68 | U17: 0.0169
L18: 2 | O18: SERVIÇOS INICIAIS/ TERRAPLENAGEM | T18: =SUM(T19:T21) -> 2193.23 | U18: 0.0191
L19: 2.1 | M19: 74209/001 | N19: SINAPI | O19: PLACA DE OBRA EM CHAPA DE ACO GALVANIZADO | P19: m² | Q19: 4.5 | R19: 278.55 | S19: =ROUND(R19 * (1 + 25.69 / 100), 2) -> 350.11 | T19: =ROUND(Q19 * S19, 2) -> 1575.5 | U19: 0.0138
L20: 2.2 | M20: 73822/002 | N20: SINAPI | O20: LIMPEZA MECANIZADA DE TERRENO COM REMOCAO DE CAMADA VEGETAL, UTILIZANDO MOTONIVELADORA | P20: m² | Q20: 519.1 | R20: 0.49 | S20: =ROUND(R20 * (1 + 25.69 / 100), 2) -> 0.62 | T20: =ROUND(Q20 * S20, 2) -> 321.84 | U20: 0.0028
L21: 2.3 | M21: 79472 | N21: SINAPI | O21: REGULARIZACAO DE SUPERFICIES EM TERRA COM MOTONIVELADORA | P21: m² | Q21: 519.1 | R21: 0.45 | S21: =ROUND(R21 * (1 + 25.69 / 100), 2) -> 0.57 | T21: =ROUND(Q21 * S21, 2) -> 295.89 | U21: 0.0026
L22: 3 | O22: CAMPO DE FUTEBOL | T22: =SUM(T23:T25) -> 73178.96 | U22: 0.6388
L23: 3.1 | M23: 98504 | N23: SINAPI | O23: PLANTIO DE GRAMA EM PLACAS. AF_05/2018 | P23: m² | Q23: 766.21 | R23: 12.83 | S23: =ROUND(R23 * (1 + 25.69 / 100), 2) -> 16.13 | T23: =ROUND(Q23 * S23, 2) -> 12358.97 | U23: 0.1079
L24: 3.2 | M24: COMP. 01 SEAD | N24: Próprio | O24: CONJUNTO DE TRAVES PARA FUTSAL/ SOCIETY EM TUBOS DE AÇO GALVANIZADO; DIMENSÕES OFICIAIS; PINTADA A PRIMER COM TINTA ESMALTE: INCLUSO REDES DE NYLON | P24: UN | Q24: 1 | R24: 3506.46 | S24: =ROUND(R24 * (1 + 25.69 / 100), 2) -> 4407.27 | T24: =ROUND(Q24 * S24, 2) -> 4407.27 | U24: 0.0385
L25: 3.3 | M25: COMP. 02 SEAD | N25: Próprio | O25: ALAMBRADO (HT=4.00M) COM TELA GALV. 2"X2" (H=1,50M), MONTANTES EM TUBO DE AÇO GALVANIZADO DE 2" A CADA 2M, TUBO DE AÇO GALVANIZADO DE 1" (HORIZONTAIS), MURETA (H=0,50M) EM ALVENARIA DE BLOCOS DE CIMENTO REVESTIDA E PINTADA EM PVA LÁTEX 2 DEMÃOS (Ref. ORSE 4301) | P25: M | Q25: 109.2 | R25: 411.01 | S25: =ROUND(R25 * (1 + 25.69 / 100), 2) -> 516.6 | T25: =ROUND(Q25 * S25, 2) -> 56412.72 | U25: 0.4925
L26: 4 | O26: ESQUADRIA | T26: =T27 -> 1736.34 | U26: 0.0152
L27: 4.1 | M27: 100701 | N27: SINAPI | O27: PORTA DE FERRO, DE ABRIR, TIPO GRADE COM CHAPA, COM GUARNIÇÕES. AF_12/2019 | P27: m² | Q27: 3.78 | R27: 365.46 | S27: =ROUND(R27 * (1 + 25.69 / 100), 2) -> 459.35 | T27: =ROUND(Q27 * S27, 2) -> 1736.34 | U27: 0.0152
L28: 5 | O28: URBANIZAÇÃO/PAVIMENTAÇÃO/ILUMINAÇÃO EXTERNA | T28: =SUM(T29,T35) -> 73375.69 | U28: 0.6405
L29: 5.1 | O29: PAVIMENTO | T29: =SUM(T30:T34) -> 30189.11 | U29: 0.2635
L30: 5.1.1 | M30: 85335 | N30: SINAPI | O30: RETIRADA DE MEIO FIO C/ EMPILHAMENTO E S/ REMOCAO | P30: M | Q30: 70 | R30: 6.64 | S30: =ROUND(R30 * (1 + 25.69 / 100), 2) -> 8.35 | T30: =ROUND(Q30 * S30, 2) -> 584.5 | U30: 0.0051
L31: 5.1.2 | M31: 94273 | N31: SINAPI | O31: ASSENTAMENTO DE GUIA (MEIO-FIO) EM TRECHO RETO, CONFECCIONADA EM CONCRETO PRÉ-FABRICADO, DIMENSÕES 100X15X13X30 CM (COMPRIMENTO X BASE INFERIOR X BASE SUPERIOR X ALTURA), PARA VIAS URBANAS (USO VIÁRIO). AF_06/2016 | P31: M | Q31: 70 | R31: 37.23 | S31: =ROUND(R31 * (1 + 25.69 / 100), 2) -> 46.79 | T31: =ROUND(Q31 * S31, 2) -> 3275.3 | U31: 0.0286
L32: 5.1.3 | M32: 101864 | N32: SINAPI | O32: REASSENTAMENTO DE BLOCOS RETANGULAR PARA PISO INTERTRAVADO, ESPESSURA DE 8 CM, EM VIA/ESTACIONAMENTO, COM REAPROVEITAMENTO DOS BLOCOS RETANGULAR. AF_12/2020 | P32: m² | Q32: 108.5 | R32: 19.28 | S32: =ROUND(R32 * (1 + 25.69 / 100), 2) -> 24.23 | T32: =ROUND(Q32 * S32, 2) -> 2628.96 | U32: 0.023
L33: 5.1.4 | M33: 92396 | N33: SINAPI | O33: EXECUÇÃO DE PASSEIO EM PISO INTERTRAVADO, COM BLOCO RETANGULAR COR NATURAL DE 20 X 10 CM, ESPESSURA 6 CM. AF_12/2015 | P33: m² | Q33: 257.87 | R33: 49.22 | S33: =ROUND(R33 * (1 + 25.69 / 100), 2) -> 61.86 | T33: =ROUND(Q33 * S33, 2) -> 15951.84 | U33: 0.1393
L34: 5.1.5 | M34: 93679 | N34: SINAPI | O34: EXECUÇÃO DE PASSEIO EM PISO INTERTRAVADO, COM BLOCO RETANGULAR COLORIDO DE 20 X 10 CM, ESPESSURA 6 CM. AF_12/2015 | P34: m² | Q34: 113.15 | R34: 54.48 | S34: =ROUND(R34 * (1 + 25.69 / 100), 2) -> 68.48 | T34: =ROUND(Q34 * S34, 2) -> 7748.51 | U34: 0.0676
L35: 5.2 | O35: ILUMINAÇÃO ELÉTRICA EM ANEXO | T35: =T36 -> 43186.58 | U35: 0.377
L36: 5.2.1 | N36: ANEXO | O36: ILUMINAÇÃO | P36: UN | Q36: 1 | R36: =S36/1.2569 -> 34359.6 | S36: 43186.58 | T36: =Q36*S36 -> 43186.58 | U36: 0.377 | X36: =W43-'ORÇ. SEM DESON.'!W43 -> 3354.85
L37: 6 | O37: SERVIÇOS FINAIS | T37: =SUM(T38:T39) -> 2300.75 | U37: 0.0201
L38: 6.1 | M38: 9537 | N38: SINAPI | O38: LIMPEZA FINAL DA OBRA | P38: m² | Q38: 766.21 | R38: 2.24 | S38: =ROUND(R38 * (1 + 25.69 / 100), 2) -> 2.82 | T38: =ROUND(Q38 * S38, 2) -> 2160.71 | U38: 0.0189
L39: 6.2 | M39: 72897 | N39: SINAPI | O39: CARGA MANUAL DE ENTULHO EM CAMINHAO BASCULANTE 6 M3 | P39: m³ | Q39: 6 | R39: 18.57 | S39: =ROUND(R39 * (1 + 25.69 / 100), 2) -> 23.34 | T39: =ROUND(Q39 * S39, 2) -> 140.04 | U39: 0.0012
Q41: Total sem BDI | T41: =W41 -> 125497.53 | W41: =W43/1.2569 -> 125497.53
Q42: Total do BDI | T42: =W42 -> 32240.32 | W42: =W41*0.2569 -> 32240.32
Q43: Total Geral | T43: =W43 -> 157737.85 | W43: =SUM(T15,T18,T22,T26,T28,T37) -> 157737.85
L45: _______________________________________________________________ PEDRO HENRIQUE Setor de Engenharia

Sheet ORÇ. SEM DESON.
L2: GOVERNO DO ESTADO DO PIAUÍ
L3: SECRETARIA DE ESTADO DA ADMINISTRAÇÃO E PREVIDÊNCIA DO PIAUÍ - SEADPREV
L4: UNIDADE DE MODERNIZAÇÃO ADMINISTRATIVA - UMA
L6: MUNICÍPIO: TERESINA - PI
L7: OBRA: REVITALIZAÇÃO: CAMPO DE FUTEBOL
L8: =TODAY() -> 2021-03-04
L10: PLANILHA ORÇAMENTÁRIA (SEM DESONERADA)
L12: DATA-BASE: SINAPI - 01/2021 - Piauí - ORSE DEZEMBRO.2019 | Q12: L.S.= | R12: ='L.S SEM DESON.'!G49 -> 112.15 | S12: BDI= | T12: ='BDI SEM DESON.'!E34 -> 0.1971
Z13: MEMÓRIA | AB13: DESCRITIVO | AD13: CRONOGRAMA | AF13: RESUMO
B14: =COLUMN() -> 2 | C14: =COLUMN() -> 3 | D14: =COLUMN() -> 4 | E14: =COLUMN() -> 5 | F14: =COLUMN() -> 6 | G14: =COLUMN() -> 7 | H14: =COLUMN() -> 8 | I14: =COLUMN() -> 9 | J14: =COLUMN() -> 10 | K14: =COLUMN() -> 11 | L14: REFER. | M14: CÓDIGO | N14: ÍTEM | O14: DESCRIÇÃO | P14: UNIDADE | Q14: QUANT. | R14: CUSTO UNITÁRIO | S14: CUSTO COM BDI | T14: CUSTO PARCIAL | Z14: =COLUMN() -> 26 | AA14: =COLUMN() -> 27 | AB14: =COLUMN() -> 28 | AC14: =COLUMN() -> 29 | AD14: =COLUMN() -> 30 | AE14: =COLUMN() -> 31 | AF14: =COLUMN() -> 32 | AG14: =COLUMN() -> 33
L15: 1 | O15: ADMINISTRAÇÃO LOCAL DA OBRA | T15: =SUM(T16:T17) -> 5436.36 | U15: =T15 / 112925.1 -> 0.0481
L16: 1.1 | M16: 90777 | N16: SINAPI | O16: ENGENHEIRO CIVIL DE OBRA JUNIOR COM ENCARGOS COMPLEMENTARES | P16: H | Q16: 30 | R16: 92.27 | S16: =ROUND(R16 * (1 + 19.71 / 100), 2) -> 110.46 | T16: =ROUND(Q16 * S16, 2) -> 3313.8 | U16: 0.0293
L17: 1.2 | M17: 90780 | N17: SINAPI | O17: MESTRE DE OBRAS COM ENCARGOS COMPLEMENTARES | P17: H | Q17: 48 | R17: 36.94 | S17: =ROUND(R17 * (1 + 19.71 / 100), 2) -> 44.22 | T17: =ROUND(Q17 * S17, 2) -> 2122.56 | U17: 0.0188
L18: 2 | O18: SERVIÇOS INICIAIS/ TERRAPLENAGEM | T18: =SUM(T19:T21) -> 2124.77 | U18: 0.0188
L19: 2.1 | M19: 74209/001 | N19: SINAPI | O19: PLACA DE OBRA EM CHAPA DE ACO GALVANIZADO | P19: m² | Q19: 4.5 | R19: 283.61 | S19: =ROUND(R19 * (1 + 19.71 / 100), 2) -> 339.51 | T19: =ROUND(Q19 * S19, 2) -> 1527.8 | U19: 0.0135
L20: 2.2 | M20: 73822/002 | N20: SINAPI | O20: LIMPEZA MECANIZADA DE TERRENO COM REMOCAO DE CAMADA VEGETAL, UTILIZANDO MOTONIVELADORA | P20: m² | Q20: 519.1 | R20: 0.5 | S20: =ROUND(R20 * (1 + 19.71 / 100), 2) -> 0.6 | T20: =ROUND(Q20 * S20, 2) -> 311.46 | U20: 0.0028
L21: 2.3 | M21: 79472 | N21: SINAPI | O21: REGULARIZACAO DE SUPERFICIES EM TERRA COM MOTONIVELADORA | P21: m² | Q21: 519.1 | R21: 0.46 | S21: =ROUND(R21 * (1 + 19.71 / 100), 2) -> 0.55 | T21: =ROUND(Q21 * S21, 2) -> 285.51 | U21: 0.0025
L22: 3 | O22: CAMPO DE FUTEBOL | T22: =SUM(T23:T25) -> 71515.09 | U22: 0.6333
L23: 3.1 | M23: 98504 | N23: SINAPI | O23: PLANTIO DE GRAMA EM PLACAS. AF_05/2018 | P23: m² | Q23: 766.21 | R23: 13.14 | S23: =ROUND(R23 * (1 + 19.71 / 100), 2) -> 15.73 | T23: =ROUND(Q23 * S23, 2) -> 12052.48 | U23: 0.1067
L24: 3.2 | M24: COMP. 01 SEAD | N24: Próprio | O24: CONJUNTO DE TRAVES PARA FUTSAL/ SOCIETY EM TUBOS DE AÇO GALVANIZADO; DIMENSÕES OFICIAIS; PINTADA A PRIMER COM TINTA ESMALTE: INCLUSO REDES DE NYLON | P24: UN | Q24: 1 | R24: 3506.46 | S24: =ROUND(R24 * (1 + 19.71 / 100), 2) -> 4197.58 | T24: =ROUND(Q24 * S24, 2) -> 4197.58 | U24: 0.0372
L25: 3.3 | M25: COMP. 02 SEAD | N25: Próprio | O25: ALAMBRADO (HT=4.00M) COM TELA GALV. 2"X2" (H=1,50M), MONTANTES EM TUBO DE AÇO GALVANIZADO DE 2" A CADA 2M, TUBO DE AÇO GALVANIZADO DE 1" (HORIZONTAIS), MURETA (H=0,50M) EM ALVENARIA DE BLOCOS DE CIMENTO REVESTIDA E PINTADA EM PVA LÁTEX 2 DEMÃOS (Ref. ORSE 4301) | P25: M | Q25: 109.2 | R25: 422.76 | S25: =ROUND(R25 * (1 + 19.71 / 100), 2) -> 506.09 | T25: =ROUND(Q25 * S25, 2) -> 55265.03 | U25: 0.4894
L26: 4 | O26: ESQUADRIA | T26: =T27 -> 1660.25 | U26: 0.0147
L27: 4.1 | M27: 100701 | N27: SINAPI | O27: PORTA DE FERRO, DE ABRIR, TIPO GRADE COM CHAPA, COM GUARNIÇÕES. AF_12/2019 | P27: m² | Q27: 3.78 | R27: 366.9 | S27: =ROUND(R27 * (1 + 19.71 / 100), 2) -> 439.22 | T27: =ROUND(Q27 * S27, 2) -> 1660.25 | U27: 0.0147
L28: 5 | O28: URBANIZAÇÃO/PAVIMENTAÇÃO/ILUMINAÇÃO EXTERNA | T28: =T29+T35 -> 71264.66 | U28: 0.6311
L29: 5.1 | O29: PAVIMENTO | T29: =SUM(T30:T34) -> 29806.76 | U29: 0.264
L30: 5.1.1 | M30: 85335 | N30: SINAPI | O30: RETIRADA DE MEIO FIO C/ EMPILHAMENTO E S/ REMOCAO | P30: M | Q30: 70 | R30: 7.38 | S30: =ROUND(R30 * (1 + 19.71 / 100), 2) -> 8.83 | T30: =ROUND(Q30 * S30, 2) -> 618.1 | U30: 0.0055
L31: 5.1.2 | M31: 94273 | N31: SINAPI | O31: ASSENTAMENTO DE GUIA (MEIO-FIO) EM TRECHO RETO, CONFECCIONADA EM CONCRETO PRÉ-FABRICADO, DIMENSÕES 100X15X13X30 CM (COMPRIMENTO X BASE INFERIOR X BASE SUPERIOR X ALTURA), PARA VIAS URBANAS (USO VIÁRIO). AF_06/2016 | P31: M | Q31: 70 | R31: 38.65 | S31: =ROUND(R31 * (1 + 19.71 / 100), 2) -> 46.27 | T31: =ROUND(Q31 * S31, 2) -> 3238.9 | U31: 0.0287
L32: 5.1.3 | M32: 101864 | N32: SINAPI | O32: REASSENTAMENTO DE BLOCOS RETANGULAR PARA PISO INTERTRAVADO, ESPESSURA DE 8 CM, EM VIA/ESTACIONAMENTO, COM REAPROVEITAMENTO DOS BLOCOS RETANGULAR. AF_12/2020 | P32: m² | Q32: 108.5 | R32: 21.17 | S32: =ROUND(R32 * (1 + 19.71 / 100), 2) -> 25.34 | T32: =ROUND(Q32 * S32, 2) -> 2749.39 | U32: 0.0243
L33: 5.1.4 | M33: 92396 | N33: SINAPI | O33: EXECUÇÃO DE PASSEIO EM PISO INTERTRAVADO, COM BLOCO RETANGULAR COR NATURAL DE 20 X 10 CM, ESPESSURA 6 CM. AF_12/2015 | P33: m² | Q33: 257.87 | R33: 50.63 | S33: =ROUND(R33 * (1 + 19.71 / 100), 2) -> 60.61 | T33: =ROUND(Q33 * S33, 2) -> 15629.5 | U33: 0.1384
L34: 5.1.5 | M34: 93679 | N34: SINAPI | O34: EXECUÇÃO DE PASSEIO EM PISO INTERTRAVADO, COM BLOCO RETANGULAR COLORIDO DE 20 X 10 CM, ESPESSURA 6 CM. AF_12/2015 | P34: m² | Q34: 113.15 | R34: 55.89 | S34: =ROUND(R34 * (1 + 19.71 / 100), 2) -> 66.91 | T34: =ROUND(Q34 * S34, 2) -> 7570.87 | U34: 0.067
L35: 5.2 | O35: ILUMINAÇÃO ELÉTRICA EM ANEXO | T35: =T36 -> 41457.9 | U35: 0.3671
L36: 5.2.1 | P36: ANEXO | Q36: 1 | R36: =S36/1.2569 -> 32984.25 | S36: 41457.9 | T36: =Q36*S36 -> 41457.9 | U36: =T36 / 114551.27 -> 0.3619
L37: 6 | O37: SERVIÇOS FINAIS | T37: =SUM(T38:T39) -> 2381.87 | U37: 0.0211
L38: 6.1 | M38: 9537 | N38: SINAPI | O38: LIMPEZA FINAL DA OBRA | P38: m² | Q38: 766.21 | R38: 2.44 | S38: =ROUND(R38 * (1 + 19.71 / 100), 2) -> 2.92 | T38: =ROUND(Q38 * S38, 2) -> 2237.33 | U38: 0.0198
L39: 6.2 | M39: 72897 | N39: SINAPI | O39: CARGA MANUAL DE ENTULHO EM CAMINHAO BASCULANTE 6 M3 | P39: m³ | Q39: 6 | R39: 20.12 | S39: =ROUND(R39 * (1 + 19.71 / 100), 2) -> 24.09 | T39: =ROUND(Q39 * S39, 2) -> 144.54 | U39: 0.0013
Q41: Total sem BDI | T41: =W41 -> 128964.16 | W41: =W43/1.1971 -> 128964.16
Q42: Total do BDI | T42: =W42 -> 25418.84 | W42: =W41*0.1971 -> 25418.84
Q43: Total Geral | T43: =W43 -> 154383 | W43: =SUM(T15,T18,T22,T26,T28,T37) -> 154383
L45: _______________________________________________________________ PEDRO HENRIQUE Setor de Engenharia

Sheet MEM.CALC.
A1: ='ORÇ. DESON.'!L6 -> MUNICÍPIO: TERESINA - PI
A2: ='ORÇ. DESON.'!L7 -> OBRA: REVITALIZAÇÃO: CAMPO DE FUTEBOL
A3: MEMÓRIA DE CÁLCULO
B4: ='ORÇ. DESON.'!L12 -> DATA-BASE: SINAPI - 01/2021 - Piauí - ORSE DEZEMBRO.2019 | K4: LEIS SOCIAIS (%): | M4: =LEI -> 82.44 | O4: BDI (%): | P4: ='BDI DESON.'!E34 -> 0.2569
A5: ITEM | B5: CÓDIGO | C5: DESCRIÇÃO | G5: UNID | H5: QUANT | I5: COEF | J5: COMP (m) | K5: LARG (m) | L5: ALT (m) | M5: ÁREA (m2) | N5: VOL (m3) | O5: PARCIAL | P5: TOTAL
A6: 1 | B6: ADMINISTRAÇÃO LOCAL
A7: 1.1 | B7: ='ORÇ. DESON.'!M16 -> 90777 | C7: ='ORÇ. DESON.'!O16 -> ENGENHEIRO CIVIL DE OBRA JUNIOR COM ENCARGOS COMPLEMENTARES | G7: ='ORÇ. DESON.'!P16 -> H | P7: =SUM(O7:O9) -> 26
A8: 1.1.1 | H8: 26 | M8: =IF(COUNTA(J8:L8)=2,ROUND(PRODUCT(J8:L8),2),"") ->  | N8: =IF(OR(COUNTA(J8:L8)=3,AND(COUNTA(J8:L8)=1,M8<>"")),ROUND(PRODUCT(J8:M8),2),"") ->  | O8: =IF(N8<>"",ROUND(PRODUCT(H8,I8,N8),2),IF(M8<>"",ROUND(PRODUCT(H8,I8,M8),2),ROUND(PRODUCT(H8:L8),2))) -> 26
A10: 1.2 | B10: ='ORÇ. DESON.'!M17 -> 90780 | C10: ='ORÇ. DESON.'!O17 -> MESTRE DE OBRAS COM ENCARGOS COMPLEMENTARES | G10: =G7 -> H | P10: =SUM(O10:O12) -> 33
A11: 1.2.1 | H11: 33 | N11: =IF(OR(COUNTA(J11:L11)=3,AND(COUNTA(J11:L11)=1,M11<>"")),ROUND(PRODUCT(J11:M11),2),"") ->  | O11: =IF(N11<>"",ROUND(PRODUCT(H11,I11,N11),2),IF(M11<>"",ROUND(PRODUCT(H11,I11,M11),2),ROUND(PRODUCT(H11:L11),2))) -> 33
A13: 2 | B13: ='ORÇ. DESON.'!O18 -> SERVIÇOS INICIAIS/ TERRAPLENAGEM
A14: 2.1 | B14: 74209/001 | C14: ='ORÇ. DESON.'!O19 -> PLACA DE OBRA EM CHAPA DE ACO GALVANIZADO | G14: ='ORÇ. DESON.'!P23 -> m² | P14: =SUM(O14:O16) -> 4.5
A15: 2.1.1 | J15: 3 | K15: 1.5 | M15: =IF(COUNTA(J15:L15)=2,ROUND(PRODUCT(J15:L15),2),"") -> 4.5 | N15: =IF(OR(COUNTA(J15:L15)=3,AND(COUNTA(J15:L15)=1,M15<>"")),ROUND(PRODUCT(J15:M15),2),"") ->  | O15: =IF(N15<>"",ROUND(PRODUCT(H15,I15,N15),2),IF(M15<>"",ROUND(PRODUCT(H15,I15,M15),2),ROUND(PRODUCT(H15:L15),2))) -> 4.5
A17: 2.2 | B17: ='ORÇ. DESON.'!M20 -> 73822/002 | C17: ='ORÇ. DESON.'!O20 -> LIMPEZA MECANIZADA DE TERRENO COM REMOCAO DE CAMADA VEGETAL, UTILIZANDO MOTONIVELADORA | G17: ='ORÇ. DESON.'!P20 -> m² | P17: =SUM(O17:O19) -> 519.1
A18: 2.2.1 | B18: Área Campo (ver projeto arq.) | H18: 1 | M18: ='ORÇ. DESON.'!Q20 -> 519.1 | N18: =IF(OR(COUNTA(J18:L18)=3,AND(COUNTA(J18:L18)=1,M18<>"")),ROUND(PRODUCT(J18:M18),2),"") ->  | O18: =IF(N18<>"",ROUND(PRODUCT(H18,I18,N18),2),IF(M18<>"",ROUND(PRODUCT(H18,I18,M18),2),ROUND(PRODUCT(H18:L18),2))) -> 519.1
A20: 2.3 | B20: ='ORÇ. DESON.'!M21 -> 79472 | C20: ='ORÇ. DESON.'!O21 -> REGULARIZACAO DE SUPERFICIES EM TERRA COM MOTONIVELADORA | G20: ='ORÇ. DESON.'!P21 -> m² | P20: =SUM(O20:O22) -> 519.1
A21: 2.3.1 | B21: Área Campo (ver projeto arq.) | H21: 1 | M21: =M18 -> 519.1 | N21: =IF(OR(COUNTA(J21:L21)=3,AND(COUNTA(J21:L21)=1,M21<>"")),ROUND(PRODUCT(J21:M21),2),"") ->  | O21: =IF(N21<>"",ROUND(PRODUCT(H21,I21,N21),2),IF(M21<>"",ROUND(PRODUCT(H21,I21,M21),2),ROUND(PRODUCT(H21:L21),2))) -> 519.1
A23: 3 | B23: ='ORÇ. DESON.'!O22 -> CAMPO DE FUTEBOL
A24: 3.1 | B24: ='ORÇ. DESON.'!M23 -> 98504 | C24: ='ORÇ. DESON.'!O23 -> PLANTIO DE GRAMA EM PLACAS. AF_05/2018 | G24: ='ORÇ. DESON.'!P23 -> m² | P24: =SUM(O24:O26) -> 766.21
A25: 3.1.1 | B25: Área de Plantio de Grama (ver projeto arq.) | H25: 1 | M25: ='ORÇ. DESON.'!Q23 -> 766.21 | N25: =IF(OR(COUNTA(J25:L25)=3,AND(COUNTA(J25:L25)=1,M25<>"")),ROUND(PRODUCT(J25:M25),2),"") ->  | O25: =IF(N25<>"",ROUND(PRODUCT(H25,I25,N25),2),IF(M25<>"",ROUND(PRODUCT(H25,I25,M25),2),ROUND(PRODUCT(H25:L25),2))) -> 766.21
A27: 3.2 | B27: ='ORÇ. DESON.'!M24 -> COMP. 01 SEAD | C27: ='ORÇ. DESON.'!O24 -> CONJUNTO DE TRAVES PARA FUTSAL/ SOCIETY EM TUBOS DE AÇO GALVANIZADO; DIMENSÕES OFICIAIS; PINTADA A PRIMER COM TINTA ESMALTE: INCLUSO REDES DE NYLON | G27: ='ORÇ. DESON.'!P24 -> UN | P27: =SUM(O27:O29) -> 1
A28: 3.2.1 | H28: 1 | N28: =IF(OR(COUNTA(J28:L28)=3,AND(COUNTA(J28:L28)=1,M28<>"")),ROUND(PRODUCT(J28:M28),2),"") ->  | O28: =IF(N28<>"",ROUND(PRODUCT(H28,I28,N28),2),IF(M28<>"",ROUND(PRODUCT(H28,I28,M28),2),ROUND(PRODUCT(H28:L28),2))) -> 1
A30: 3.3 | B30: ='ORÇ. DESON.'!M25 -> COMP. 02 SEAD | C30: ='ORÇ. DESON.'!O25 -> ALAMBRADO (HT=4.00M) COM TELA GALV. 2"X2" (H=1,50M), MONTANTES EM TUBO DE AÇO GALVANIZADO DE 2" A CADA 2M, TUBO DE AÇO GALVANIZADO DE 1" (HORIZONTAIS), MURETA (H=0,50M) EM ALVENARIA DE BLOCOS DE CIMENTO REVESTIDA E PINTADA EM PVA LÁTEX 2 DEMÃOS (Ref. ORSE 4301) | G30: M | P30: =SUM(O30:O32) -> 109.2
A31: 3.3.1 | B31: Alambrado campo h=4,0m (Perímetro = 2x(37,30+17,30) = 109,20 | H31: 2 | J31: =37.3+17.3 -> 54.6 | M31: =IF(COUNTA(J31:L31)=2,ROUND(PRODUCT(J31:L31),2),"") ->  | N31: =IF(OR(COUNTA(J31:L31)=3,AND(COUNTA(J31:L31)=1,M31<>"")),ROUND(PRODUCT(J31:M31),2),"") ->  | O31: =IF(N31<>"",ROUND(PRODUCT(H31,I31,N31),2),IF(M31<>"",ROUND(PRODUCT(H31,I31,M31),2),ROUND(PRODUCT(H31:L31),2))) -> 109.2
A33: 4 | B33: ='ORÇ. DESON.'!O26 -> ESQUADRIA
A34: 4.1 | B34: ='ORÇ. DESON.'!M27 -> 100701 | C34: ='ORÇ. DESON.'!O27 -> PORTA DE FERRO, DE ABRIR, TIPO GRADE COM CHAPA, COM GUARNIÇÕES. AF_12/2019 | G34: ='ORÇ. DESON.'!P27 -> m² | P34: =SUM(O34:O36) -> 3.78
A35: 4.1.1 | B35: P01 | H35: 2 | J35: 0.9 | K35: 2.1 | M35: =IF(COUNTA(J35:L35)=2,ROUND(PRODUCT(J35:L35),2),"") -> 1.89 | N35: =IF(OR(COUNTA(J35:L35)=3,AND(COUNTA(J35:L35)=1,M35<>"")),ROUND(PRODUCT(J35:M35),2),"") ->  | O35: =IF(N35<>"",ROUND(PRODUCT(H35,I35,N35),2),IF(M35<>"",ROUND(PRODUCT(H35,I35,M35),2),ROUND(PRODUCT(H35:L35),2))) -> 3.78
A37: 5 | B37: ='ORÇ. DESON.'!O28 -> URBANIZAÇÃO/PAVIMENTAÇÃO/ILUMINAÇÃO EXTERNA
A38: 5.1 | B38: ='ORÇ. DESON.'!O29 -> PAVIMENTO
A39: 5.1.1 | B39: ='ORÇ. DESON.'!M30 -> 85335 | C39: ='ORÇ. DESON.'!O30 -> RETIRADA DE MEIO FIO C/ EMPILHAMENTO E S/ REMOCAO | G39: ='ORÇ. DESON.'!P30 -> M | P39: =SUM(O39:O40) -> 70
A40: 5.1.1.1 | H40: 1 | J40: =70 -> 70 | M40: =IF(COUNTA(J40:L40)=2,ROUND(PRODUCT(J40:L40),2),"") ->  | N40: =IF(OR(COUNTA(J40:L40)=3,AND(COUNTA(J40:L40)=1,M40<>"")),ROUND(PRODUCT(J40:M40),2),"") ->  | O40: =IF(N40<>"",ROUND(PRODUCT(H40,I40,N40),2),IF(M40<>"",ROUND(PRODUCT(H40,I40,M40),2),ROUND(PRODUCT(H40:L40),2))) -> 70
A42: 5.1.2 | B42: ='ORÇ. DESON.'!M31 -> 94273 | C42: ='ORÇ. DESON.'!O31 -> ASSENTAMENTO DE GUIA (MEIO-FIO) EM TRECHO RETO, CONFECCIONADA EM CONCRETO PRÉ-FABRICADO, DIMENSÕES 100X15X13X30 CM (COMPRIMENTO X BASE INFERIOR X BASE SUPERIOR X ALTURA), PARA VIAS URBANAS (USO VIÁRIO). AF_06/2016 | G42: ='ORÇ. DESON.'!P31 -> M | P42: =SUM(O42:O44) -> 70
A43: 5.1.2.1 | H43: 1 | J43: 70 | N43: =IF(OR(COUNTA(J43:L43)=3,AND(COUNTA(J43:L43)=1,M43<>"")),ROUND(PRODUCT(J43:M43),2),"") ->  | O43: =IF(N43<>"",ROUND(PRODUCT(H43,I43,N43),2),IF(M43<>"",ROUND(PRODUCT(H43,I43,M43),2),ROUND(PRODUCT(H43:L43),2))) -> 70
A45: 5.1.3 | B45: ='ORÇ. DESON.'!M32 -> 101864 | C45: ='ORÇ. DESON.'!O32 -> REASSENTAMENTO DE BLOCOS RETANGULAR PARA PISO INTERTRAVADO, ESPESSURA DE 8 CM, EM VIA/ESTACIONAMENTO, COM REAPROVEITAMENTO DOS BLOCOS RETANGULAR. AF_12/2020 | G45: ='ORÇ. DESON.'!P32 -> m² | P45: =SUM(O45:O47) -> 108.5
A46: 5.1.3.1 | H46: 1 | M46: ='ORÇ. DESON.'!Q32 -> 108.5 | N46: =IF(OR(COUNTA(J46:L46)=3,AND(COUNTA(J46:L46)=1,M46<>"")),ROUND(PRODUCT(J46:M46),2),"") ->  | O46: =IF(N46<>"",ROUND(PRODUCT(H46,I46,N46),2),IF(M46<>"",ROUND(PRODUCT(H46,I46,M46),2),ROUND(PRODUCT(H46:L46),2))) -> 108.5
A48: 5.1.4 | B48: ='ORÇ. DESON.'!M33 -> 92396 | C48: ='ORÇ. DESON.'!O33 -> EXECUÇÃO DE PASSEIO EM PISO INTERTRAVADO, COM BLOCO RETANGULAR COR NATURAL DE 20 X 10 CM, ESPESSURA 6 CM. AF_12/2015 | G48: =G45 -> m² | P48: =SUM(O48:O50) -> 257.87
A49: 5.1.4.1 | B49: Área Circ.(m²) - Área Reassent.(m²) (=366,42-108,50 = 257,87) | H49: 1 | M49: =366.42-108.55 -> 257.87 | O49: =IF(N49<>"",ROUND(PRODUCT(H49,I49,N49),2),IF(M49<>"",ROUND(PRODUCT(H49,I49,M49),2),ROUND(PRODUCT(H49:L49),2))) -> 257.87
A51: 5.1.5 | B51: ='ORÇ. DESON.'!M34 -> 93679 | C51: ='ORÇ. DESON.'!O34 -> EXECUÇÃO DE PASSEIO EM PISO INTERTRAVADO, COM BLOCO RETANGULAR COLORIDO DE 20 X 10 CM, ESPESSURA 6 CM. AF_12/2015 | G51: =G48 -> m² | P51: =SUM(O51:O53) -> 113.15
A52: 5.1.5.1 | B52: Ver projeto | H52: 1 | M52: ='ORÇ. DESON.'!Q34 -> 113.15 | N52: =IF(OR(COUNTA(J52:L52)=3,AND(COUNTA(J52:L52)=1,M52<>"")),ROUND(PRODUCT(J52:M52),2),"") ->  | O52: =IF(N52<>"",ROUND(PRODUCT(H52,I52,N52),2),IF(M52<>"",ROUND(PRODUCT(H52,I52,M52),2),ROUND(PRODUCT(H52:L52),2))) -> 113.15
A54: 5.2 | B54: ='ORÇ. DESON.'!O35 -> ILUMINAÇÃO ELÉTRICA EM ANEXO
A56: 5.2.1 | B56: ANEXO | C56: ='ORÇ. DESON.'!O36 -> ILUMINAÇÃO | G56: UM | P56: =SUM(O56:O57) -> 1
A57: 5.2.1.1 | H57: 1 | M57: 1 | N57: =IF(OR(COUNTA(J57:L57)=3,AND(COUNTA(J57:L57)=1,M57<>"")),ROUND(PRODUCT(J57:M57),2),"") ->  | O57: =IF(N57<>"",ROUND(PRODUCT(H57,I57,N57),2),IF(M57<>"",ROUND(PRODUCT(H57,I57,M57),2),ROUND(PRODUCT(H57:L57),2))) -> 1
A59: 6 | B59: ='ORÇ. DESON.'!O38 -> LIMPEZA FINAL DA OBRA
A60: 6.1 | B60: ='ORÇ. DESON.'!M39 -> 72897 | C60: ='ORÇ. DESON.'!O39 -> CARGA MANUAL DE ENTULHO EM CAMINHAO BASCULANTE 6 M3 | G60: ='ORÇ. DESON.'!P39 -> m³ | P60: =SUM(O60:O61) -> 6
A61: 6.1.1 | H61: 1 | M61: ='ORÇ. DESON.'!Q39 -> 6 | N61: =IF(OR(COUNTA(J61:L61)=3,AND(COUNTA(J61:L61)=1,M61<>"")),ROUND(PRODUCT(J61:M61),2),"") ->  | O61: =IF(N61<>"",ROUND(PRODUCT(H61,I61,N61),2),IF(M61<>"",ROUND(PRODUCT(H61,I61,M61),2),ROUND(PRODUCT(H61:L61),2))) -> 6

Sheet CRONOGRAMA
A1: =ROW(36:36) -> 36 | B1: =COLUMN(K:K) -> 11
D2: ='ORÇ. DESON.'!L2 -> GOVERNO DO ESTADO DO PIAUÍ | K2: #
D3: ='ORÇ. DESON.'!L3 -> SECRETARIA DE ESTADO DA ADMINISTRAÇÃO E PREVIDÊNCIA DO PIAUÍ - SEADPREV | K3: #
D4: ='ORÇ. DESON.'!L4 -> UNIDADE DE MODERNIZAÇÃO ADMINISTRATIVA - UMA | K4: #
D6: ='ORÇ. DESON.'!L6 -> MUNICÍPIO: TERESINA - PI | K6: #
D7: ='ORÇ. DESON.'!L7 -> OBRA: REVITALIZAÇÃO: CAMPO DE FUTEBOL | K7: #
D8: ='ORÇ. DESON.'!L8 -> 2021-03-04 | K8: #
D10: C R O N O G R A M A F Í S I C O - F I N A N C E I R O | K10: #
C12: ITEM | D12: DISCRIMINAÇÃO DOS SERVIÇOS | E12: R$ | F12: % | G12: 0 | H12: =INDIRECT(ADDRESS(ROW(),COLUMN()-1))+30 -> 30 | I12: 60 | J12: 90
B16: =ROW() -> 16 | C16: ='ORÇ. SEM DESON.'!L15 -> 1 | D16: ='ORÇ. DESON.'!O15 -> ADMINISTRAÇÃO LOCAL DA OBRA | E16: ='ORÇ. SEM DESON.'!T15 -> 5436.36 | F16: =E16/$E$28 -> 0.0352 | G16: FÍSICO | H16: 0.33 | I16: 0.33 | J16: 0.34 | K16: ## | L16: =SUM(H16:J16) -> 1
G17: FINANCEIRO | H17: =ROUND(H16*$E16-0.01,2) -> 1793.99 | I17: =ROUND(I16*$E16,2) -> 1794 | J17: =ROUND(J16*$E16,2) -> 1848.36 | L17: 5436.35
B18: =ROW() -> 18 | C18: ='ORÇ. SEM DESON.'!L18 -> 2 | D18: ='ORÇ. SEM DESON.'!O18 -> SERVIÇOS INICIAIS/ TERRAPLENAGEM | E18: ='ORÇ. SEM DESON.'!T18 -> 2124.77 | F18: =E18/$E$28 -> 0.0138 | G18: FÍSICO | H18: 1 | K18: ## | L18: 1
G19: FINANCEIRO | H19: =ROUND(H18*$E18,2) -> 2124.77 | I19: 0 | J19: 0 | L19: 2124.77
B20: =ROW() -> 20 | C20: ='ORÇ. SEM DESON.'!L22 -> 3 | D20: ='ORÇ. SEM DESON.'!O22 -> CAMPO DE FUTEBOL | E20: ='ORÇ. SEM DESON.'!T22 -> 71515.09 | F20: =E20/$E$28 -> 0.4632 | G20: FÍSICO | H20: 0.6 | I20: 0.2 | J20: 0.2 | K20: ## | L20: 1
G21: FINANCEIRO | H21: =ROUND(H20*$E20,2) -> 42909.05 | I21: 14303.02 | J21: 14303.02 | L21: 71515.09
B22: =ROW() -> 22 | C22: ='ORÇ. SEM DESON.'!L26 -> 4 | D22: ='ORÇ. SEM DESON.'!O26 -> ESQUADRIA | E22: ='ORÇ. SEM DESON.'!T26 -> 1660.25 | F22: =E22/$E$28 -> 0.0108 | G22: FÍSICO | J22: 1 | K22: ## | L22: 1
G23: FINANCEIRO | H23: =ROUND(H22*$E22,2) -> 0 | I23: 0 | J23: 1660.25 | L23: 1660.25
B24: =ROW() -> 24 | C24: ='ORÇ. SEM DESON.'!L28 -> 5 | D24: ='ORÇ. SEM DESON.'!O28 -> URBANIZAÇÃO/PAVIMENTAÇÃO/ILUMINAÇÃO EXTERNA | E24: ='ORÇ. SEM DESON.'!T28 -> 71264.66 | F24: =E24/$E$28 -> 0.4616 | G24: FÍSICO | I24: 0.5 | J24: 0.5 | K24: ## | L24: 1
G25: FINANCEIRO | H25: =ROUND(H24*$E24,2) -> 0 | I25: 35632.33 | J25: 35632.33 | L25: 71264.66
B26: =ROW() -> 26 | C26: ='ORÇ. SEM DESON.'!L37 -> 6 | D26: ='ORÇ. SEM DESON.'!O37 -> SERVIÇOS FINAIS | E26: ='ORÇ. SEM DESON.'!T37 -> 2381.87 | F26: =E26/$E$28 -> 0.0154 | G26: FÍSICO | J26: 1 | K26: ## | L26: 1
G27: FINANCEIRO | H27: =ROUND(H26*$E26,2) -> 0 | I27: 0 | J27: 2381.87 | L27: 2381.87
E28: =SUM(E16:E27) -> 154383 | F28: =SUM(F16:F27) -> 1
D29: TOTAL DE PERÍODO (R$) | H29: =H17+H19+H21+H23+H25+H27 -> 46827.81 | I29: =I17+I19+I21+I23+I25+I27 -> 51729.35 | J29: 55825.83 | K29: =K17+K21+K23+K25+K27+#REF!+#REF!+#REF!+#REF!+#REF!+#REF!+#REF!+#REF!+#REF!+#REF!+#REF!+#REF!+#REF! -> 
D30: TOTAL ACUMULADO (R$) | H30: =H29 -> 46827.81 | I30: =I29+H30 -> 98557.16 | J30: =J29+I30+0.01 -> 154383 | K30: =K29+#REF! -> 
D31: PORCENTAGEM DO PERÍODO (%) | H31: =H29/$E$28 -> 0.3033 | I31: 0.3351 | J31: 0.3616
D32: PORCENTAGEM ACUMULADO (%) | H32: =H31 -> 0.3033 | I32: =I31+H32 -> 0.6384 | J32: =J31+I32 -> 1 | K32: =K31+#REF! -> 
A36: ='ORÇ. DESON.'!#REF! ->  | C36: CUSTO TOTAL DA OBRA | J36: =J30 -> 154383 | K36: *
C49: ='ORÇ. DESON.'!#REF! ->  | D49: =IF(C49="","",INDEX(ORÇAMENTO,MATCH(C49,'ORÇ. DESON.'!$N:$N,0),4)) ->  | E49: ='ORÇ. DESON.'!#REF! ->  | F49: =E49/$E$28 -> 
C53: ='ORÇ. DESON.'!#REF! ->  | D53: =IF(C53="","",INDEX(ORÇAMENTO,MATCH(C53,'ORÇ. DESON.'!$N:$N,0),4)) ->  | E53: ='ORÇ. DESON.'!#REF! ->  | F53: =E53/$E$28 -> 
C66: ='ORÇ. DESON.'!#REF! ->  | D66: =IF(C66="","",INDEX(ORÇAMENTO,MATCH(C66,'ORÇ. DESON.'!$N:$N,0),4)) ->  | E66: ='ORÇ. DESON.'!#REF! ->  | F66: =E66/$E$28 -> 
E208: ='ORÇ. DESON.'!#REF! -> 
E226: ='ORÇ. DESON.'!#REF! -> 
E243: ='ORÇ. DESON.'!#REF! -> 
E269: ='ORÇ. DESON.'!#REF! -> 

Sheet RESUMO (hidden)
C2: ='ORÇ. DESON.'!L2 -> GOVERNO DO ESTADO DO PIAUÍ
C3: ='ORÇ. DESON.'!L3 -> SECRETARIA DE ESTADO DA ADMINISTRAÇÃO E PREVIDÊNCIA DO PIAUÍ - SEADPREV
C4: ='ORÇ. DESON.'!L4 -> UNIDADE DE MODERNIZAÇÃO ADMINISTRATIVA - UMA
C6: ='ORÇ. DESON.'!L6 -> MUNICÍPIO: TERESINA - PI
C7: ='ORÇ. DESON.'!L7 -> OBRA: REVITALIZAÇÃO: CAMPO DE FUTEBOL
C8: =TODAY() -> 2021-03-04
C10: PLANILHA RESUMO
C12: ÍTEM | D12: DESCRIÇÃO | E12: PREÇO TOTAL
A14: =ROW(20:20) -> 20 | B14: =ROW() -> 14 | C14: ='ORÇ. DESON.'!#REF! ->  | D14: =IF(C14="","",INDEX(ORÇAMENTO,MATCH(C14,'ORÇ. DESON.'!$N:$N,0),4)) ->  | E14: ='ORÇ. DESON.'!#REF! -> 
A16: =ROW(19:19) -> 19 | B16: =ROW() -> 16 | C16: =#REF! ->  | D16: =IF(C16="","",INDEX(ORÇAMENTO,MATCH(C16,'ORÇ. DESON.'!$N:$N,0),4)) ->  | E16: ='ORÇ. DESON.'!#REF! -> 
B18: =ROW() -> 18 | C18: ='ORÇ. DESON.'!#REF! ->  | D18: =IF(C18="","",INDEX(ORÇAMENTO,MATCH(C18,'ORÇ. DESON.'!$N:$N,0),4)) ->  | E18: =IF(C18="","",INDEX(ORÇAMENTO,MATCH(C18,'ORÇ. DESON.'!$N:$N,0),9)) -> 
D21: TOTAL (R$) | E21: ='ORÇ. DESON.'!#REF! -> 
C23: ='ORÇ. DESON.'!#REF! -> 
C25: =UPPER(L1) -> 

Sheet Plan1 (hidden)
A2: MUNICÍPIO: TERESINA
A3: OBRA: ADEQUAÇÃO DE SALA AEE - CETI JOAO HENRIQUE ALMEIDA SOUSA
A4: ADMINISTRAÇÃO DE OBRA
A7: MEMÓRIA DE CÁLCULO
A8: Atividade: | B8: Contratação de técnico de segurança do trabalho
A10: Honorários e Remunerações
A12: FONTE | B12: CÓDIGO | C12: DESCRIÇÃO | D12: UNIDADE | E12: COEF. | F12: CUSTO UNITÁRIO1 | G12: TOTAL
A13: iSINAPI | B13: 40944 | C13: =IF(A13="SINAPI",VLOOKUP(B13,SINAPI,2,FALSE),IF(A13="iSINAPI",VLOOKUP(B13,iSINAPI,2,FALSE),IF(A13="SEINFRA",VLOOKUP(B13,SEINFRA,2,FALSE),IF(A13="iSEINFRA",VLOOKUP(B13,iSEINFRA,2,FALSE),IF(A13="ORSE",VLOOKUP(B13,ORSE,2,FALSE),IF(A13="iORSE",VLOOKUP(B13,iORSE,2,FALSE),"NÃO ENCONTRADO")))))) ->  | D13: =IF(A13="SINAPI",VLOOKUP(B13,SINAPI,3,FALSE),IF(A13="iSINAPI",VLOOKUP(B13,iSINAPI,3,FALSE),IF(A13="SEINFRA",VLOOKUP(B13,SEINFRA,3,FALSE),IF(A13="iSEINFRA",VLOOKUP(B13,iSEINFRA,3,FALSE),IF(A13="ORSE",VLOOKUP(B13,ORSE,3,FALSE),IF(A13="iORSE",VLOOKUP(B13,iORSE,3,FALSE),"x")))))) ->  | E13: 1 | F13: =IF(A13="SINAPI",VLOOKUP(B13,SINAPI,4,FALSE),IF(A13="iSINAPI",VLOOKUP(B13,iSINAPI,4,FALSE),IF(A13="SEINFRA",VLOOKUP(B13,SEINFRA,4,FALSE),IF(A13="iSEINFRA",VLOOKUP(B13,iSEINFRA,4,FALSE),IF(A13="ORSE",VLOOKUP(B13,ORSE,4,FALSE),IF(A13="iORSE",VLOOKUP(B13,iORSE,4,FALSE),"")))))) ->  | G13: =ROUND(E13*F13,2) -> 
A14: iSINAPI | B14: 40863 | C14: =IF(A14="SINAPI",VLOOKUP(B14,SINAPI,2,FALSE),IF(A14="iSINAPI",VLOOKUP(B14,iSINAPI,2,FALSE),IF(A14="SEINFRA",VLOOKUP(B14,SEINFRA,2,FALSE),IF(A14="iSEINFRA",VLOOKUP(B14,iSEINFRA,2,FALSE),IF(A14="ORSE",VLOOKUP(B14,ORSE,2,FALSE),IF(A14="iORSE",VLOOKUP(B14,iORSE,2,FALSE),"NÃO ENCONTRADO")))))) ->  | D14: =IF(A14="SINAPI",VLOOKUP(B14,SINAPI,3,FALSE),IF(A14="iSINAPI",VLOOKUP(B14,iSINAPI,3,FALSE),IF(A14="SEINFRA",VLOOKUP(B14,SEINFRA,3,FALSE),IF(A14="iSEINFRA",VLOOKUP(B14,iSEINFRA,3,FALSE),IF(A14="ORSE",VLOOKUP(B14,ORSE,3,FALSE),IF(A14="iORSE",VLOOKUP(B14,iORSE,3,FALSE),"x")))))) ->  | E14: 1 | F14: =IF(A14="SINAPI",VLOOKUP(B14,SINAPI,4,FALSE),IF(A14="iSINAPI",VLOOKUP(B14,iSINAPI,4,FALSE),IF(A14="SEINFRA",VLOOKUP(B14,SEINFRA,4,FALSE),IF(A14="iSEINFRA",VLOOKUP(B14,iSEINFRA,4,FALSE),IF(A14="ORSE",VLOOKUP(B14,ORSE,4,FALSE),IF(A14="iORSE",VLOOKUP(B14,iORSE,4,FALSE),"")))))) ->  | G14: =ROUND(E14*F14,2) -> 
A15: iSINAPI | B15: 40864 | C15: =IF(A15="SINAPI",VLOOKUP(B15,SINAPI,2,FALSE),IF(A15="iSINAPI",VLOOKUP(B15,iSINAPI,2,FALSE),IF(A15="SEINFRA",VLOOKUP(B15,SEINFRA,2,FALSE),IF(A15="iSEINFRA",VLOOKUP(B15,iSEINFRA,2,FALSE),IF(A15="ORSE",VLOOKUP(B15,ORSE,2,FALSE),IF(A15="iORSE",VLOOKUP(B15,iORSE,2,FALSE),"NÃO ENCONTRADO")))))) ->  | D15: =IF(A15="SINAPI",VLOOKUP(B15,SINAPI,3,FALSE),IF(A15="iSINAPI",VLOOKUP(B15,iSINAPI,3,FALSE),IF(A15="SEINFRA",VLOOKUP(B15,SEINFRA,3,FALSE),IF(A15="iSEINFRA",VLOOKUP(B15,iSEINFRA,3,FALSE),IF(A15="ORSE",VLOOKUP(B15,ORSE,3,FALSE),IF(A15="iORSE",VLOOKUP(B15,iORSE,3,FALSE),"x")))))) ->  | E15: 1 | F15: =IF(A15="SINAPI",VLOOKUP(B15,SINAPI,4,FALSE),IF(A15="iSINAPI",VLOOKUP(B15,iSINAPI,4,FALSE),IF(A15="SEINFRA",VLOOKUP(B15,SEINFRA,4,FALSE),IF(A15="iSEINFRA",VLOOKUP(B15,iSEINFRA,4,FALSE),IF(A15="ORSE",VLOOKUP(B15,ORSE,4,FALSE),IF(A15="iORSE",VLOOKUP(B15,iORSE,4,FALSE),"")))))) ->  | G15: =ROUND(E15*F15,2) -> 
A16: SINAPI | B16: 93557 | C16: =IF(A16="SINAPI",VLOOKUP(B16,SINAPI,2,FALSE),IF(A16="iSINAPI",VLOOKUP(B16,iSINAPI,2,FALSE),IF(A16="SEINFRA",VLOOKUP(B16,SEINFRA,2,FALSE),IF(A16="iSEINFRA",VLOOKUP(B16,iSEINFRA,2,FALSE),IF(A16="ORSE",VLOOKUP(B16,ORSE,2,FALSE),IF(A16="iORSE",VLOOKUP(B16,iORSE,2,FALSE),"NÃO ENCONTRADO")))))) ->  | D16: =IF(A16="SINAPI",VLOOKUP(B16,SINAPI,3,FALSE),IF(A16="iSINAPI",VLOOKUP(B16,iSINAPI,3,FALSE),IF(A16="SEINFRA",VLOOKUP(B16,SEINFRA,3,FALSE),IF(A16="iSEINFRA",VLOOKUP(B16,iSEINFRA,3,FALSE),IF(A16="ORSE",VLOOKUP(B16,ORSE,3,FALSE),IF(A16="iORSE",VLOOKUP(B16,iORSE,3,FALSE),"x")))))) ->  | E16: 0.05 | F16: =IF(A16="SINAPI",VLOOKUP(B16,SINAPI,4,FALSE),IF(A16="iSINAPI",VLOOKUP(B16,iSINAPI,4,FALSE),IF(A16="SEINFRA",VLOOKUP(B16,SEINFRA,4,FALSE),IF(A16="iSEINFRA",VLOOKUP(B16,iSEINFRA,4,FALSE),IF(A16="ORSE",VLOOKUP(B16,ORSE,4,FALSE),IF(A16="iORSE",VLOOKUP(B16,iORSE,4,FALSE),"")))))) ->  | G16: =ROUND(E16*F16,2) -> 
A17: SINAPI | B17: 95416 | C17: =IF(A17="SINAPI",VLOOKUP(B17,SINAPI,2,FALSE),IF(A17="iSINAPI",VLOOKUP(B17,iSINAPI,2,FALSE),IF(A17="SEINFRA",VLOOKUP(B17,SEINFRA,2,FALSE),IF(A17="iSEINFRA",VLOOKUP(B17,iSEINFRA,2,FALSE),IF(A17="ORSE",VLOOKUP(B17,ORSE,2,FALSE),IF(A17="iORSE",VLOOKUP(B17,iORSE,2,FALSE),"NÃO ENCONTRADO")))))) ->  | D17: =IF(A17="SINAPI",VLOOKUP(B17,SINAPI,3,FALSE),IF(A17="iSINAPI",VLOOKUP(B17,iSINAPI,3,FALSE),IF(A17="SEINFRA",VLOOKUP(B17,SEINFRA,3,FALSE),IF(A17="iSEINFRA",VLOOKUP(B17,iSEINFRA,3,FALSE),IF(A17="ORSE",VLOOKUP(B17,ORSE,3,FALSE),IF(A17="iORSE",VLOOKUP(B17,iORSE,3,FALSE),"x")))))) ->  | E17: 1 | F17: =IF(A17="SINAPI",VLOOKUP(B17,SINAPI,4,FALSE),IF(A17="iSINAPI",VLOOKUP(B17,iSINAPI,4,FALSE),IF(A17="SEINFRA",VLOOKUP(B17,SEINFRA,4,FALSE),IF(A17="iSEINFRA",VLOOKUP(B17,iSEINFRA,4,FALSE),IF(A17="ORSE",VLOOKUP(B17,ORSE,4,FALSE),IF(A17="iORSE",VLOOKUP(B17,iORSE,4,FALSE),"")))))) ->  | G17: =ROUND(E17*F17,2) -> 
A22: Total honorários: | B22: =SUM(G13:G17) -> 
A23: BDI (ISS 3%) | B23: =ROUND(B22*0.2569,2) -> 
A24: BDI (ISS 4%) | B24: =ROUND(B22*0.2654,2) -> 
A25: BDI (ISS 4%) | B25: =ROUND(B22*0.2739,2) -> 
A26: Total Geral (ISS 3%): | B26: =B22+B23 -> 
A27: Total Geral (ISS 4%): | B27: =B22+B24 -> 
A28: Total Geral (ISS 5%): | B28: =B22+B25 -> 
A30: REFERÊNCIAS CONSULTADAS
A32: 1SINAPI 02/2019

Sheet BDI DESON.
C2: ='ORÇ. DESON.'!L2 -> GOVERNO DO ESTADO DO PIAUÍ
C3: ='ORÇ. DESON.'!L3 -> SECRETARIA DE ESTADO DA ADMINISTRAÇÃO E PREVIDÊNCIA DO PIAUÍ - SEADPREV
C4: ='ORÇ. DESON.'!L4 -> UNIDADE DE MODERNIZAÇÃO ADMINISTRATIVA - UMA
C6: ='ORÇ. DESON.'!L6 -> MUNICÍPIO: TERESINA - PI
C7: ='ORÇ. DESON.'!L7 -> OBRA: REVITALIZAÇÃO: CAMPO DE FUTEBOL
C8: ='ORÇ. DESON.'!L8 -> 2021-03-04
C10: BONIFICAÇÕES E DESPESAS INDIRETAS ( DESONERADO)
C12: COMPOSIÇÃO DO BDI
C14: ITEM | D14: COMPONENTE DO BDI | E14: PERCENTUAL
C16: B | D16: BENEFÍCIOS | E16: =SUM(E17) -> 0.074 | G16: =(100%+E16) -> 1.074
D17: LUCRO | E17: 0.074
C19: CA | D19: CUSTOS ADMINISTRATIVOS | E19: =SUM(E20:E22) -> 0.0477 | G19: =(100%+E19) -> 1.0477
D20: DESPESAS COM A ADMINISTRAÇAO CENTRAL | E20: 0.03
D21: GARANTIAS E SEGUROS | E21: 0.008
D22: RISCOS | E22: 0.0097
C24: CF | D24: CUSTOS FINANCEIROS | E24: =SUM(E25) -> 0.0059 | G24: =(100%+E24) -> 1.0059
D25: DESPESAS FINANCEIRAS | E25: 0.0059
C27: IT | D27: IMPOSTOS | E27: =SUM(E28:E31) -> 0.0995 | G27: =(100%-E27) -> 0.9005
D28: ISS * | E28: =E44 -> 0.018
D29: PIS | E29: 0.0065
D30: COFINS | E30: 0.03
D31: CONTRIBUIÇÃO PREVIDENCIÁRIA PARA RECEITA BRUTA | E31: 0.045
C34: TOTAL | E34: =((G16*G19*G24)/G27)-1 -> 0.2569
C40: ISS - ALÍQUOTA: TERESINA | E40: 0.03
C42: ISS - BASE DE CÁLCULO: | E42: 0.6
C44: ISS - SOBRE PREÇO DE VENDA: | E44: =E42*E40 -> 0.018
E183: ='ORÇ. DESON.'!#REF! -> 
E208: ='ORÇ. DESON.'!#REF! -> 
E212: ='ORÇ. DESON.'!#REF! -> 
E225: ='ORÇ. DESON.'!#REF! -> 
E367: ='ORÇ. DESON.'!#REF! -> 
E385: ='ORÇ. DESON.'!#REF! -> 
E402: ='ORÇ. DESON.'!#REF! -> 
E428: ='ORÇ. DESON.'!#REF! -> 

Sheet BDI SEM DESON.
C2: ='ORÇ. DESON.'!L2 -> GOVERNO DO ESTADO DO PIAUÍ
C3: ='ORÇ. DESON.'!L3 -> SECRETARIA DE ESTADO DA ADMINISTRAÇÃO E PREVIDÊNCIA DO PIAUÍ - SEADPREV
C4: ='ORÇ. DESON.'!L4 -> UNIDADE DE MODERNIZAÇÃO ADMINISTRATIVA - UMA
C6: ='ORÇ. DESON.'!L6 -> MUNICÍPIO: TERESINA - PI
C7: ='ORÇ. DESON.'!L7 -> OBRA: REVITALIZAÇÃO: CAMPO DE FUTEBOL
C8: ='ORÇ. DESON.'!L8 -> 2021-03-04
C10: BONIFICAÇÕES E DESPESAS INDIRETAS (SEM DESONERADO)
C12: COMPOSIÇÃO DO BDI
C14: ITEM | D14: COMPONENTE DO BDI | E14: PERCENTUAL
C16: B | D16: BENEFÍCIOS | E16: =SUM(E17) -> 0.074 | G16: =(100%+E16) -> 1.074
D17: LUCRO | E17: 0.074
C19: CA | D19: CUSTOS ADMINISTRATIVOS | E19: =SUM(E20:E22) -> 0.0477 | G19: =(100%+E19) -> 1.0477
D20: DESPESAS COM A ADMINISTRAÇAO CENTRAL | E20: 0.03
D21: GARANTIAS E SEGUROS | E21: 0.008
D22: RISCOS | E22: 0.0097
C24: CF | D24: CUSTOS FINANCEIROS | E24: =SUM(E25) -> 0.0059 | G24: =(100%+E24) -> 1.0059
D25: DESPESAS FINANCEIRAS | E25: 0.0059
C27: IT | D27: IMPOSTOS | E27: =SUM(E28:E31) -> 0.0545 | G27: =(100%-E27) -> 0.9455
D28: ISS * | E28: =E44 -> 0.018
D29: PIS | E29: 0.0065
D30: COFINS | E30: 0.03
D31: CONTRIBUIÇÃO PREVIDENCIÁRIA PARA RECEITA BRUTA | E31: 0
C34: TOTAL | E34: =((G16*G19*G24)/G27)-1 -> 0.1971
C40: ISS - ALÍQUOTA: TERESINA | E40: 0.03
C42: ISS - BASE DE CÁLCULO: | E42: 0.6
C44: ISS - SOBRE PREÇO DE VENDA: | E44: =E42*E40 -> 0.018
E183: ='ORÇ. DESON.'!#REF! -> 

Sheet L.S.
B3: SINAPI- SISTEMA NACIONAL DE PESQUISA DE CUSTO E ÍNDICES DA CONSTRUÇÃO CIVIL
B4: ENCARGOS SOCIAIS SOBRE PREÇOS DA MÃO DE OBRA HORISTA E MENSALISTA (COM DESONERAÇÃO)
B6: UF: PIAUÍ
B7: ENCARGOS SOCIAIS SOBRE A MÃO DE OBRA
B8: CÓDIGO | C8: DESCRIÇÃO | G8: HORISTA % | H8: MENSALISTA %
B9: GRUPO A
B10: A1 | C10: INSS | G10: 0 | H10: 0
B11: A2 | C11: SESI | G11: 1.5 | H11: 1.5
B12: A3 | C12: SENAI | G12: 1 | H12: 1
B13: A4 | C13: INCRA | G13: 0.2 | H13: 0.2
B14: A5 | C14: SEBRAE | G14: 0.6 | H14: 0.6
B15: A6 | C15: Salário-Educação | G15: 2.5 | H15: 2.5
B16: A7 | C16: Segura Contra Acidentes de Trabalho | G16: 3 | H16: 3
B17: A8 | C17: FGTS | G17: 8 | H17: 8
B18: A9 | C18: SECONCI | G18: 0 | H18: 0
B19: A | C19: Total dos Encargos Sociais | G19: =SUM(G10:G18) -> 16.8 | H19: =SUM(H10:H18) -> 16.8
B21: GRUPO B
B22: B1 | C22: Repouso Semanal Remunerado | G22: 17.82 | H22: 0
B23: B2 | C23: Feriados | G23: 3.95 | H23: 0
B24: B3 | C24: Auxílio-Enfermidade | G24: 0.87 | H24: 0.67
B25: B4 | C25: 13º salário | G25: 10.76 | H25: 8.33
B26: B5 | C26: Licença Paternidade | G26: 0.07 | H26: 0.06
B27: B6 | C27: Faltas Justificadas | G27: 0.72 | H27: 0.56
B28: B7 | C28: Dias de Chuvas | G28: 1.16 | H28: 0
B29: B8 | C29: Auxílio Acidente de Trabalho | G29: 0.11 | H29: 0.08
B30: B9 | C30: Férias Gozadas | G30: 8.35 | H30: 6.47
B31: B10 | C31: Salário Maternidade | G31: 0.03 | H31: 0.03
B32: B | C32: Total dos Encargos Sociais que recebem incidências de A | G32: =SUM(G22:G31) -> 43.84 | H32: =SUM(H22:H31) -> 16.2
B34: GRUPO C
B35: C1 | C35: Aviso Prévio Idenizado | G35: 5.2 | H35: 4.03
B36: C2 | C36: Aviso Prévio Trabalhado | G36: 0.12 | H36: 0.09
B37: C3 | C37: Férias Indenizadas | G37: 5.26 | H37: 4.07
B38: C4 | C38: Depósito Recisão sem justa causa | G38: 3.9 | H38: 3.02
B39: C5 | C39: Idenização Adicional | G39: 0.44 | H39: 0.34
B40: C | C40: Total dos Encargos Sociais que não recebem incidências globais de A | G40: =SUM(G35:G39) -> 14.92 | H40: =SUM(H35:H39) -> 11.55
B42: GRUPO D
B43: D1 | C43: Reincidência de Grupo A sobre Grupo B | G43: 7.37 | H43: 2.72
B44: D2 | C44: Reincidência de Grupo A sobre Aviso Prévio Trabalhado e Reincidência do FGTS sobre Aviso Prévio Idenizado | G44: 0.44 | H44: 0.34
B45: D | C45: Total de reincidências de um grupo sobre o outro | G45: =SUM(G43:G44) -> 7.81 | H45: =SUM(H43:H44) -> 3.06
B47: Total dos encargos Sociais Complementares
B49: TOTAL (A+B+C+D+E) | G49: =SUM(G45+G40+G32+G19) -> 83.37 | H49: =SUM(H45+H40+H32+H19) -> 47.61
E183: ='ORÇ. DESON.'!#REF! -> 
E208: ='ORÇ. DESON.'!#REF! -> 
E212: ='ORÇ. DESON.'!#REF! -> 
E225: ='ORÇ. DESON.'!#REF! -> 
E367: ='ORÇ. DESON.'!#REF! -> 
E385: ='ORÇ. DESON.'!#REF! -> 
E402: ='ORÇ. DESON.'!#REF! -> 
E428: ='ORÇ. DESON.'!#REF! -> 

Sheet L.S SEM DESON.
B3: SINAPI- SISTEMA NACIONAL DE PESQUISA DE CUSTO E ÍNDICES DA CONSTRUÇÃO CIVIL
B4: ENCARGOS SOCIAIS SOBRE PREÇOS DA MÃO DE OBRA HORISTA E MENSALISTA (SEM DESONERAÇÃO)
B6: UF: PIAUÍ
B7: ENCARGOS SOCIAIS SOBRE A MÃO DE OBRA
B8: CÓDIGO | C8: DESCRIÇÃO | G8: HORISTA % | H8: MENSALISTA %
B9: GRUPO A
B10: A1 | C10: INSS | G10: 20 | H10: 20
B11: A2 | C11: SESI | G11: 1.5 | H11: 1.5
B12: A3 | C12: SENAI | G12: 1 | H12: 1
B13: A4 | C13: INCRA | G13: 0.2 | H13: 0.2
B14: A5 | C14: SEBRAE | G14: 0.6 | H14: 0.6
B15: A6 | C15: Salário-Educação | G15: 2.5 | H15: 2.5
B16: A7 | C16: Segura Contra Acidentes de Trabalho | G16: 3 | H16: 3
B17: A8 | C17: FGTS | G17: 8 | H17: 8
B18: A9 | C18: SECONCI | G18: 0 | H18: 0
B19: A | C19: Total dos Encargos Sociais | G19: =SUM(G10:G18) -> 36.8 | H19: =SUM(H10:H18) -> 36.8
B21: GRUPO B
B22: B1 | C22: Repouso Semanal Remunerado | G22: 17.82 | H22: 0
B23: B2 | C23: Feriados | G23: 3.95 | H23: 0
B24: B3 | C24: Auxílio-Enfermidade | G24: 0.87 | H24: 0.67
B25: B4 | C25: 13º salário | G25: 10.76 | H25: 8.33
B26: B5 | C26: Licença Paternidade | G26: 0.07 | H26: 0.06
B27: B6 | C27: Faltas Justificadas | G27: 0.72 | H27: 0.56
B28: B7 | C28: Dias de Chuvas | G28: 1.16 | H28: 0
B29: B8 | C29: Auxílio Acidente de Trabalho | G29: 0.11 | H29: 0.08
B30: B9 | C30: Férias Gozadas | G30: 8.35 | H30: 6.47
B31: B10 | C31: Salário Maternidade | G31: 0.03 | H31: 0.03
B32: B | C32: Total dos Encargos Sociais que recebem incidências de A | G32: =SUM(G22:G31) -> 43.84 | H32: =SUM(H22:H31) -> 16.2
B34: GRUPO C
B35: C1 | C35: Aviso Prévio Idenizado | G35: 5.2 | H35: 4.03
B36: C2 | C36: Aviso Prévio Trabalhado | G36: 0.12 | H36: 0.09
B37: C3 | C37: Férias Indenizadas | G37: 5.26 | H37: 4.07
B38: C4 | C38: Depósito Recisão sem justa causa | G38: 3.9 | H38: 3.02
B39: C5 | C39: Idenização Adicional | G39: 0.44 | H39: 0.34
B40: C | C40: Total dos Encargos Sociais que não recebem incidências globais de A | G40: =SUM(G35:G39) -> 14.92 | H40: =SUM(H35:H39) -> 11.55
B42: GRUPO D
B43: D1 | C43: Reincidência de Grupo A sobre Grupo B | G43: 16.13 | H43: 5.96
B44: D2 | C44: Reincidência de Grupo A sobre Aviso Prévio Trabalhado e Reincidência do FGTS sobre Aviso Prévio Idenizado | G44: 0.46 | H44: 0.36
B45: D | C45: Total de reincidências de um grupo sobre o outro | G45: =SUM(G43:G44) -> 16.59 | H45: =SUM(H43:H44) -> 6.32
B47: Total dos encargos Sociais Complementares
B49: TOTAL (A+B+C+D+E) | G49: =SUM(G45+G40+G32+G19) -> 112.15 | H49: =SUM(H45+H40+H32+H19) -> 70.87
E183: ='ORÇ. DESON.'!#REF! -> 
E208: ='ORÇ. DESON.'!#REF! -> 
E212: ='ORÇ. DESON.'!#REF! -> 
E225: ='ORÇ. DESON.'!#REF! -> 
E367: ='ORÇ. DESON.'!#REF! -> 
E385: ='ORÇ. DESON.'!#REF! -> 
E402: ='ORÇ. DESON.'!#REF! -> 
E428: ='ORÇ. DESON.'!#REF! -> 

Sheet COMP. CIVIL
A2: GOVERNO DO ESTADO DO PIAUÍ
A3: =CRONOGRAMA!D3 -> SECRETARIA DE ESTADO DA ADMINISTRAÇÃO E PREVIDÊNCIA DO PIAUÍ - SEADPREV
A4: =CRONOGRAMA!D4 -> UNIDADE DE MODERNIZAÇÃO ADMINISTRATIVA - UMA
A6: ='ORÇ. DESON.'!L6 -> MUNICÍPIO: TERESINA - PI | L6: MUNICÍPIO: ALEGRETE DO PIAUÍ - PI
A7: ='ORÇ. DESON.'!L7 -> OBRA: REVITALIZAÇÃO: CAMPO DE FUTEBOL
A8: ='ORÇ. DESON.'!L8 -> 2021-03-04
A10: ='ORÇ. DESON.'!L12 -> DATA-BASE: SINAPI - 01/2021 - Piauí - ORSE DEZEMBRO.2019
A11: COMPOSIÇÕES ANALÍTICAS AUXILIARES - CONSTRUÇÃO CIVIL - SEAD
A12: Fonte | B12: Código | C12: Descreição | D12: Unid. | E12: Valor sem Desoneração | F12: Valor com Desoneração | G12: Coeficiente | H12: Valor sem Desoneração | I12: Valor com Desoneração | L12: DESCRIÇÃO
B14: SEDUC 1 | C14: SERVIÇOS PRELIMINARES | I14: =B14 -> SEDUC 1 | K14: =IF(A14="","",IF(E14=0,"ERRO","")) -> 
B15: SEDUC 1.01 | C15: RETIRADA DE ÁRVORES (Ref. Seinfra C2204) | D15: UN | G15: =SUM(G16) -> 24 | I15: =$B$15 -> SEDUC 1.01 | K15: =IF(A15="","",IF(E15=0,"ERRO","")) ->  | L15: RETIRAR MANUALMENTE ÁRVORES DE MÉDIO A GRANDE PORTE QUE ESTEJAM PRESENTES EM ÁREAS DESTINADAS A NOVA CONSTRUÇÃO OU QUE DEVAM SER REMOVIDAS A CRITÉRIO DA ADMINISTRAÇÃO.
A16: SINAPI | B16: 88316 | C16: =IFERROR(INDEX(INDIRECT(A16&"!A:D"),MATCH(B16,INDIRECT(A16&"!A:A"),0),2),"") ->  | D16: =IFERROR(INDEX(INDIRECT(A16&"!A:D"),MATCH(B16,INDIRECT(A16&"!A:A"),0),3),"") ->  | E16: =IFERROR(INDEX(INDIRECT(A16&"!A:D"),MATCH(B16,INDIRECT(A16&"!A:A"),0),4),"") ->  | F16: 24 | G16: =ROUND(PRODUCT(E16:F16),2) -> 24 | I16: =$B$15 -> SEDUC 1.01
I17: =$B$15 -> SEDUC 1.01
B18: SEDUC 1.02 | C18: LIGAÇÃO PREDIAL DE ÁGUA EM MURETA DE CONCRETO, PROVISÓRIA OU DEFINITIVA, INCLUSIVE MURETA E HIDRÔMETRO, REDE DN 50MM (Ref. Orse 6096) | D18: UN | G18: =SUM(G19:G36) -> 20 | I18: =$B$18 -> SEDUC 1.02
A19: iORSE | B19: 980 | C19: =IFERROR(INDEX(INDIRECT(A19&"!A:D"),MATCH(B19,INDIRECT(A19&"!A:A"),0),2),"") ->  | D19: =IFERROR(INDEX(INDIRECT(A19&"!A:D"),MATCH(B19,INDIRECT(A19&"!A:A"),0),3),"") ->  | E19: =IFERROR(INDEX(INDIRECT(A19&"!A:D"),MATCH(B19,INDIRECT(A19&"!A:A"),0),4),"") ->  | F19: 1 | G19: =ROUND(PRODUCT(E19:F19),2) -> 1 | I19: =$B$18 -> SEDUC 1.02
A20: iORSE | B20: 2260 | F20: 2 | G20: =ROUND(PRODUCT(E20:F20),2) -> 2 | I20: SEDUC 1.02
A21: iORSE | B21: 2360 | F21: 2 | G21: 2 | I21: SEDUC 1.02
A22: iORSE | B22: 5161 | F22: 1 | G22: 1 | I22: SEDUC 1.02
A23: iORSE | B23: 5240 | F23: 1 | G23: 1 | I23: SEDUC 1.02
A24: iORSE | B24: 6313 | F24: 1 | G24: 1 | I24: SEDUC 1.02
A25: SINAPI | B25: 88267 | F25: 1 | G25: 1 | I25: SEDUC 1.02
A26: iSINAPI | B26: 4895 | F26: 1 | G26: 1 | I26: SEDUC 1.02
A27: iSINAPI | B27: 6036 | F27: 1 | G27: 1 | I27: SEDUC 1.02
A28: SINAPI | B28: 88316 | F28: 1 | G28: 1 | I28: SEDUC 1.02
A29: iSINAPI | B29: 7098 | F29: 6 | G29: =ROUND(PRODUCT(E29:F29),2) -> 6 | I29: SEDUC 1.02
A30: iSINAPI | B30: 9813 | F30: 1 | G30: 1 | I30: SEDUC 1.02
A31: iSINAPI | B31: 9856 | F31: 1 | G31: =ROUND(PRODUCT(E31:F31),2) -> 1 | I31: SEDUC 1.02
A32: iSINAPI | B32: 12773 | F32: 0.021 | G32: 0 | I32: SEDUC 1.02
A33: SINAPI | B33: 72897 | F33: 0.022 | G33: 0 | I33: SEDUC 1.02
A34: SINAPI | B34: 96995 | F34: 0.023 | G34: 0 | I34: SEDUC 1.02
A35: SINAPI | B35: 93358 | F35: 0.024 | G35: 0 | I35: SEDUC 1.02
A36: ORSE | B36: 6083 | F36: 0.025 | G36: 0 | I36: SEDUC 1.02
I37: SEDUC 1.02
B38: COMP. 01 SEAD | C38: ='ORÇ. DESON.'!O24 -> CONJUNTO DE TRAVES PARA FUTSAL/ SOCIETY EM TUBOS DE AÇO GALVANIZADO; DIMENSÕES OFICIAIS; PINTADA A PRIMER COM TINTA ESMALTE: INCLUSO REDES DE NYLON | D38: UT | H38: =H39 -> 3506.46 | I38: =I39 -> 3506.46 | L38: 0
A39: iSINAPI | B39: 25398 | C39: CONJUNTO PARA FUTSAL COM TRAVES OFICIAIS DE 3,00 X 2,00 M EM TUBO DE ACO GALVANIZADO 3" COM REQUADRO EM TUBO DE 1", PINTURA EM PRIMER COM TINTA ESMALTE SINTETICO E REDES DE POLIETILENO FIO 4 MM | D39: =IFERROR(INDEX(INDIRECT(A39&"!A:D"),MATCH(B39,INDIRECT(A39&"!A:A"),0),3),"") ->  | E39: 3506.46 | F39: 3506.46 | G39: 1 | H39: 3506.46 | I39: 3506.46
B41: SEDUC 1.04 | C41: ENTRADA PROVISORIA DE ENERGIA ELETRICA AEREA TRIFASICA 40A EM POSTE MADEIRA (Ref. SINAPI 01/2020: 41598) | D41: UN | G41: =SUM(G42:G60) -> 91.09 | I41: =$B$41 -> SEDUC 1.04 | K41: =IF(A41="","",IF(E41=0,"ERRO","")) ->  | L41: 0
A42: iSINAPI | B42: 406 | C42: =IFERROR(INDEX(INDIRECT(A42&"!A:D"),MATCH(B42,INDIRECT(A42&"!A:A"),0),2),"") ->  | D42: =IFERROR(INDEX(INDIRECT(A42&"!A:D"),MATCH(B42,INDIRECT(A42&"!A:A"),0),3),"") ->  | E42: =IFERROR(INDEX(INDIRECT(A42&"!A:D"),MATCH(B42,INDIRECT(A42&"!A:A"),0),4),"") ->  | F42: 0.13333 | G42: =ROUND(PRODUCT(E42:F42),2) -> 0.13 | I42: =$B$41 -> SEDUC 1.04
A43: iSINAPI | B43: 420 | F43: 2 | G43: =ROUND(PRODUCT(E43:F43),2) -> 2 | I43: SEDUC 1.04
A44: iSINAPI | B44: 857 | F44: 3 | G44: 3 | I44: SEDUC 1.04
A45: iSINAPI | B45: 937 | F45: 27 | G45: 27 | I45: SEDUC 1.04
A46: iSINAPI | B46: 1062 | F46: 1 | G46: 1 | I46: SEDUC 1.04
A47: iSINAPI | B47: 1096 | F47: 2 | G47: 2 | I47: SEDUC 1.04
A48: iSINAPI | B48: 1539 | F48: 8 | G48: 8 | I48: SEDUC 1.04
A49: iSINAPI | B49: 1892 | F49: 4 | G49: 4 | I49: SEDUC 1.04
A50: iSINAPI | B50: 2392 | C50: =IFERROR(INDEX(INDIRECT(A50&"!A:D"),MATCH(B50,INDIRECT(A50&"!A:A"),0),2),"") ->  | D50: =IFERROR(INDEX(INDIRECT(A50&"!A:D"),MATCH(B50,INDIRECT(A50&"!A:A"),0),3),"") ->  | E50: =IFERROR(INDEX(INDIRECT(A50&"!A:D"),MATCH(B50,INDIRECT(A50&"!A:A"),0),4),"") ->  | F50: 1 | G50: =ROUND(PRODUCT(E50:F50),2) -> 1 | I50: SEDUC 1.04 | K50: =IF(A50="","",IF(E50=0,"ERRO","")) -> 
A51: iSINAPI | B51: 2685 | C51: =IFERROR(INDEX(INDIRECT(A51&"!A:D"),MATCH(B51,INDIRECT(A51&"!A:A"),0),2),"") ->  | D51: =IFERROR(INDEX(INDIRECT(A51&"!A:D"),MATCH(B51,INDIRECT(A51&"!A:A"),0),3),"") ->  | E51: =IFERROR(INDEX(INDIRECT(A51&"!A:D"),MATCH(B51,INDIRECT(A51&"!A:A"),0),4),"") ->  | F51: 8 | G51: =ROUND(PRODUCT(E51:F51),2) -> 8 | I51: SEDUC 1.04 | K51: =IF(A51="","",IF(E51=0,"ERRO","")) -> 
A52: iSINAPI | B52: 2731 | C52: =IFERROR(INDEX(INDIRECT(A52&"!A:D"),MATCH(B52,INDIRECT(A52&"!A:A"),0),2),"") ->  | D52: =IFERROR(INDEX(INDIRECT(A52&"!A:D"),MATCH(B52,INDIRECT(A52&"!A:A"),0),3),"") ->  | E52: =IFERROR(INDEX(INDIRECT(A52&"!A:D"),MATCH(B52,INDIRECT(A52&"!A:A"),0),4),"") ->  | F52: 7.96 | G52: =ROUND(PRODUCT(E52:F52),2) -> 7.96 | I52: SEDUC 1.04 | K52: =IF(A52="","",IF(E52=0,"ERRO","")) -> 
A53: iSINAPI | B53: 3379 | F53: 1 | G53: 1 | I53: SEDUC 1.04
A54: iSINAPI | B54: 4346 | F54: 2 | G54: 2 | I54: SEDUC 1.04
A55: iSINAPI | B55: 11267 | F55: 2 | G55: 2 | I55: SEDUC 1.04
A56: iSINAPI | B56: 12034 | F56: 2 | G56: 2 | I56: SEDUC 1.04
A57: iSINAPI | B57: 39176 | F57: 2 | G57: 2 | I57: SEDUC 1.04
A58: iSINAPI | B58: 39210 | F58: 2 | G58: 2 | I58: SEDUC 1.04
A59: SINAPI | B59: 88264 | F59: 8 | G59: 8 | I59: SEDUC 1.04
A60: SINAPI | B60: 88316 | F60: 8 | G60: 8 | I60: SEDUC 1.04
I61: SEDUC 1.04
B63: SEDUC 2 | C63: DEMOLIÇÕES E RETIRADAS | I63: =B63 -> SEDUC 2
B64: SEDUC 2.01 | C64: REMOÇÃO DE TELHAMANTO COM TELHAS ONDULADAS FIBROCIMENTO OU ALUMÍNIO (Ref. ORSE 4943) | D64: M² | G64: =SUM(G65:G66) -> 0.5 | I64: =$B$64 -> SEDUC 2.01 | L64: REMOVER MANUALMENTE TELHAS ONDULADAS (SEJAM EM FIBROCIMENTO OU ALUMÍNIO) EXISTENTES EM COBERTURAS CUJO TELHAMENTO DEVA SER SUBSTITUÍDO; AS PEÇAS RETIRADAS DEVEM PERMANECER ÍNTEGRAS O QUANTO POSSÍVEL E, POSTERIORMENTE, DEPOSITADAS NO CANTEIRO DE OBRAS; A DESTINAÇÃO DE TAIS PEÇAS DEVE OBEDECER O CRITÉRIO DA ADMINISTRAÇÃO; OBSERVAR ÁREAS INDICADAS EM PROJETO.
A65: SINAPI | B65: 88309 | C65: =IFERROR(INDEX(INDIRECT(A65&"!A:D"),MATCH(B65,INDIRECT(A65&"!A:A"),0),2),"") ->  | D65: =IFERROR(INDEX(INDIRECT(A65&"!A:D"),MATCH(B65,INDIRECT(A65&"!A:A"),0),3),"") ->  | E65: =IFERROR(INDEX(INDIRECT(A65&"!A:D"),MATCH(B65,INDIRECT(A65&"!A:A"),0),4),"") ->  | F65: 0.1 | G65: =ROUND(PRODUCT(E65:F65),2) -> 0.1 | I65: =$B$64 -> SEDUC 2.01
A66: SINAPI | B66: 88316 | C66: =IFERROR(INDEX(INDIRECT(A66&"!A:D"),MATCH(B66,INDIRECT(A66&"!A:A"),0),2),"") ->  | D66: =IFERROR(INDEX(INDIRECT(A66&"!A:D"),MATCH(B66,INDIRECT(A66&"!A:A"),0),3),"") ->  | E66: =IFERROR(INDEX(INDIRECT(A66&"!A:D"),MATCH(B66,INDIRECT(A66&"!A:A"),0),4),"") ->  | F66: 0.4 | G66: =ROUND(PRODUCT(E66:F66),2) -> 0.4 | I66: =$B$64 -> SEDUC 2.01
I67: =$B$64 -> SEDUC 2.01
B68: SEDUC 2.02 | C68: DEMOLIÇÃO DE TELHA ONDULADA DE FIBROCIMENTO (Ref. SEINFRA C1046) | D68: M² | G68: =SUM(G69:G70) -> 0.28 | I68: =$B$68 -> SEDUC 2.02 | L68: DEMOLIR MANUALMENTE COM MARRETA (OU SEMELHANTE) TELHAMENTO EM FIBROCIMENTO DE MODO QUE AS PEÇAS FIQUEM DESINTEGRADAS; PROCEDER TAL SERVIÇO COM CAUTELA SUFICIENTE À CONSERVAÇÃO DE MOBILIÁRIOS DA EDIFICAÇÃO, BEM COMO À SEGURANÇA DE SEUS OCUPANTES; OBSERVAR ÁREAS INDICADAS EM PROJETO.
A69: SINAPI | B69: 88323 | C69: =IFERROR(INDEX(INDIRECT(A69&"!A:D"),MATCH(B69,INDIRECT(A69&"!A:A"),0),2),"") ->  | D69: =IFERROR(INDEX(INDIRECT(A69&"!A:D"),MATCH(B69,INDIRECT(A69&"!A:A"),0),3),"") ->  | E69: =IFERROR(INDEX(INDIRECT(A69&"!A:D"),MATCH(B69,INDIRECT(A69&"!A:A"),0),4),"") ->  | F69: 0.025 | G69: =ROUND(PRODUCT(E69:F69),2) -> 0.03 | I69: =$B$68 -> SEDUC 2.02
A70: SINAPI | B70: 88316 | C70: =IFERROR(INDEX(INDIRECT(A70&"!A:D"),MATCH(B70,INDIRECT(A70&"!A:A"),0),2),"") ->  | D70: =IFERROR(INDEX(INDIRECT(A70&"!A:D"),MATCH(B70,INDIRECT(A70&"!A:A"),0),3),"") ->  | E70: =IFERROR(INDEX(INDIRECT(A70&"!A:D"),MATCH(B70,INDIRECT(A70&"!A:A"),0),4),"") ->  | F70: 0.25 | G70: =ROUND(PRODUCT(E70:F70),2) -> 0.25 | I70: =$B$68 -> SEDUC 2.02
I71: =$B$68 -> SEDUC 2.02
B72: SEDUC 2.04 | C72: DEMOLIÇÃO DE PISO CERÂMICO (Ref. SEINFRA C1064) | D72: M² | G72: =SUM(G73:G74) -> 0.77 | I72: =$B$72 -> SEDUC 2.04 | L72: DEMOLIR MANUALMENTE PISO CERÂMICO DE ACABAMENTO, SEJA ELE EM MOSAICO, CERÂMICA ESMALTADA OU VERMELHA; TAL SERVIÇO DEVE SER FEITO APENAS NAS PEÇAS CERÂMICAS, DE MANEIRA QUE O CONTRAPISO CORRESPONDENTE PERMANEÇA ÍNTEGRO E TOTALMENTE EXPOSTO; DEMOLIR ÁREAS DE SUBSTITUIÇÃO DE PISO, SEGUNDO PROJETO, OU QUE ESTEJAM DEGRADADAS.
A73: SINAPI | B73: 88309 | C73: =IFERROR(INDEX(INDIRECT(A73&"!A:D"),MATCH(B73,INDIRECT(A73&"!A:A"),0),2),"") ->  | D73: =IFERROR(INDEX(INDIRECT(A73&"!A:D"),MATCH(B73,INDIRECT(A73&"!A:A"),0),3),"") ->  | E73: =IFERROR(INDEX(INDIRECT(A73&"!A:D"),MATCH(B73,INDIRECT(A73&"!A:A"),0),4),"") ->  | F73: 0.07 | G73: =ROUND(PRODUCT(E73:F73),2) -> 0.07 | I73: =$B$72 -> SEDUC 2.04
A74: SINAPI | B74: 88316 | C74: =IFERROR(INDEX(INDIRECT(A74&"!A:D"),MATCH(B74,INDIRECT(A74&"!A:A"),0),2),"") ->  | D74: =IFERROR(INDEX(INDIRECT(A74&"!A:D"),MATCH(B74,INDIRECT(A74&"!A:A"),0),3),"") ->  | E74: =IFERROR(INDEX(INDIRECT(A74&"!A:D"),MATCH(B74,INDIRECT(A74&"!A:A"),0),4),"") ->  | F74: 0.7 | G74: =ROUND(PRODUCT(E74:F74),2) -> 0.7 | I74: =$B$72 -> SEDUC 2.04
I75: =$B$72 -> SEDUC 2.04
B76: SEDUC 2.05 | C76: DEMOLIÇÃO DE ALVENARIA DE PEDRA (Ref. ORSE 0008) | D76: M³ | G76: =SUM(G77:G78) -> 4.4 | I76: =$B$76 -> SEDUC 2.05 | L76: DEMOLIR ALVENARIA DE PEDRA ARGAMASSADA QUEM ESTEJA DEGRADADA EM FUNDAÇÕES PARA POSTERIOR SUBSTITUIÇÃO POR NOVO MATERIAL; DEVEM SER SEGUIDAS INDICAÇÕES EM PROJETO E/OU ORIENTAÇÕES DA ADMINISTRAÇÃO.
A77: SINAPI | B77: 88309 | C77: =IFERROR(INDEX(INDIRECT(A77&"!A:D"),MATCH(B77,INDIRECT(A77&"!A:A"),0),2),"") ->  | D77: =IFERROR(INDEX(INDIRECT(A77&"!A:D"),MATCH(B77,INDIRECT(A77&"!A:A"),0),3),"") ->  | E77: =IFERROR(INDEX(INDIRECT(A77&"!A:D"),MATCH(B77,INDIRECT(A77&"!A:A"),0),4),"") ->  | F77: 0.4 | G77: =ROUND(PRODUCT(E77:F77),2) -> 0.4 | I77: =$B$76 -> SEDUC 2.05
A78: SINAPI | B78: 88316 | C78: =IFERROR(INDEX(INDIRECT(A78&"!A:D"),MATCH(B78,INDIRECT(A78&"!A:A"),0),2),"") ->  | D78: =IFERROR(INDEX(INDIRECT(A78&"!A:D"),MATCH(B78,INDIRECT(A78&"!A:A"),0),3),"") ->  | E78: =IFERROR(INDEX(INDIRECT(A78&"!A:D"),MATCH(B78,INDIRECT(A78&"!A:A"),0),4),"") ->  | F78: 4 | G78: =ROUND(PRODUCT(E78:F78),2) -> 4 | I78: =$B$76 -> SEDUC 2.05
I79: =$B$76 -> SEDUC 2.05
B80: SEDUC 2.06 | C80: DEMOLIÇÃO DE PISO EM PEDRA CALCÁRIA (Ref. ORSE 4801) | D80: M³ | G80: =SUM(G81:G82) -> 1.43 | I80: =$B$80 -> SEDUC 2.06 | L80: DEMOLIR MANUALMENTE PISO EM PEDRA CALCÁRIA DE ACABAMENTO; TAL SERVIÇO DEVE SER FEITO APENAS NAS PEÇAS CALCÁRIAS, DE MANEIRA QUE O CONTRAPISO CORRESPONDENTE PERMANEÇA ÍNTEGRO E TOTALMENTE EXPOSTO; DEMOLIR ÁREAS DE SUBSTITUIÇÃO DE PISO, SEGUNDO PROJETO, OU QUE ESTEJAM DEGRADADAS.
A81: SINAPI | B81: 88309 | C81: =IFERROR(INDEX(INDIRECT(A81&"!A:D"),MATCH(B81,INDIRECT(A81&"!A:A"),0),2),"") ->  | D81: =IFERROR(INDEX(INDIRECT(A81&"!A:D"),MATCH(B81,INDIRECT(A81&"!A:A"),0),3),"") ->  | E81: =IFERROR(INDEX(INDIRECT(A81&"!A:D"),MATCH(B81,INDIRECT(A81&"!A:A"),0),4),"") ->  | F81: 0.13 | G81: =ROUND(PRODUCT(E81:F81),2) -> 0.13 | I81: =$B$80 -> SEDUC 2.06 | K81: =IF(A81="","",IF(E81=0,"ERRO","")) -> 
A82: SINAPI | B82: 88316 | C82: =IFERROR(INDEX(INDIRECT(A82&"!A:D"),MATCH(B82,INDIRECT(A82&"!A:A"),0),2),"") ->  | D82: =IFERROR(INDEX(INDIRECT(A82&"!A:D"),MATCH(B82,INDIRECT(A82&"!A:A"),0),3),"") ->  | E82: =IFERROR(INDEX(INDIRECT(A82&"!A:D"),MATCH(B82,INDIRECT(A82&"!A:A"),0),4),"") ->  | F82: 1.3 | G82: =ROUND(PRODUCT(E82:F82),2) -> 1.3 | I82: =$B$80 -> SEDUC 2.06
I83: =$B$80 -> SEDUC 2.06
B84: SEDUC 2.07 | C84: DEMOLIÇÃO DE REVESTIMENTO CERÂMICO OU AZULEJO (Ref. ORSE 00022) | D84: M² | G84: =SUM(G85:G86) -> 1.1 | I84: =$B$84 -> SEDUC 2.07 | L84: DEMOLIR MANUALMENTE REVESTIMENTOS CERÂMICOS DE PAREDE DE MODO QUE AS PEÇAS FIQUEM DESINTEGRADAS, INCLUSIVE ARGAMASSA DE ASSENTAMENTO; A ALVENARIA DEVE PERMANECER COMPLETAMENTE EXPOSTA, UMA VEZ QUE NÃO DEVE SER REAPROVEITADA A MASSA DE CHAPISCO EXISTENTE; APLICAR EM ÁREAS COM PEÇAS COMPROMETIDAS OU COM PREVISÃO DE SUBSTITUIÇÃO.
A85: SINAPI | B85: 88309 | C85: =IFERROR(INDEX(INDIRECT(A85&"!A:D"),MATCH(B85,INDIRECT(A85&"!A:A"),0),2),"") ->  | D85: =IFERROR(INDEX(INDIRECT(A85&"!A:D"),MATCH(B85,INDIRECT(A85&"!A:A"),0),3),"") ->  | E85: =IFERROR(INDEX(INDIRECT(A85&"!A:D"),MATCH(B85,INDIRECT(A85&"!A:A"),0),4),"") ->  | F85: 0.1 | G85: =ROUND(PRODUCT(E85:F85),2) -> 0.1 | I85: =$B$84 -> SEDUC 2.07
A86: SINAPI | B86: 88316 | C86: =IFERROR(INDEX(INDIRECT(A86&"!A:D"),MATCH(B86,INDIRECT(A86&"!A:A"),0),2),"") ->  | D86: =IFERROR(INDEX(INDIRECT(A86&"!A:D"),MATCH(B86,INDIRECT(A86&"!A:A"),0),3),"") ->  | E86: =IFERROR(INDEX(INDIRECT(A86&"!A:D"),MATCH(B86,INDIRECT(A86&"!A:A"),0),4),"") ->  | F86: 1 | G86: =ROUND(PRODUCT(E86:F86),2) -> 1 | I86: =$B$84 -> SEDUC 2.07
I87: =$B$84 -> SEDUC 2.07
B88: SEDUC 2.09 | C88: REMOÇÃO DE ESTRUTURA METÁLICA CHUMBADA EM CONCRETO (ALAMBRADO, GUARDA CORPO) (Ref. ORSE 227) | D88: M² | G88: =SUM(G89:G89) -> 3 | I88: =$B$88 -> SEDUC 2.09 | L88: RETIRAR ALAMBRADOS OU GUARDACORPOS QUE ESTEJAM CHUMBADOS EM CONCRETO OU ALVENARIA; APLICAR EM PEÇAS DETERIORADAS OU QUE DEVAM SER REMANEJADAS A CRITÉRIO DA ADMINISTRAÇÃO.
A89: SINAPI | B89: 88316 | C89: =IFERROR(INDEX(INDIRECT(A89&"!A:D"),MATCH(B89,INDIRECT(A89&"!A:A"),0),2),"") ->  | D89: =IFERROR(INDEX(INDIRECT(A89&"!A:D"),MATCH(B89,INDIRECT(A89&"!A:A"),0),3),"") ->  | E89: =IFERROR(INDEX(INDIRECT(A89&"!A:D"),MATCH(B89,INDIRECT(A89&"!A:A"),0),4),"") ->  | F89: 3 | G89: =ROUND(PRODUCT(E89:F89),2) -> 3 | I89: =$B$88 -> SEDUC 2.09
I90: =$B$88 -> SEDUC 2.09
B91: SEDUC 2.10 | C91: REMOÇÃO DE BANCADA DE GRANITO (Ref. Orse 8387) | D91: M² | G91: =SUM(G92:G93) -> 1.15 | I91: =$B$91 -> SEDUC 2.10 | L91: REMOVER MANUALMENTE BANCADAS DE GRANITO (OU MÁRMORE) DE BANHEIROS, COZINHAS OU OUTROS AMBIENTES; AS PEÇAS NÃO DEVEM SER DANIFICADAS EM TAL SERVIÇO; APLICAR EM BANCADAS DANIFICADAS OU QUE MEREÇAM SUBSTITUIÇÃO SEGUNDO PROJETO OU CRITÉRIO DA ADMINISTRAÇÃO.
A92: SINAPI | B92: 88309 | C92: =IFERROR(INDEX(INDIRECT(A92&"!A:D"),MATCH(B92,INDIRECT(A92&"!A:A"),0),2),"") ->  | D92: =IFERROR(INDEX(INDIRECT(A92&"!A:D"),MATCH(B92,INDIRECT(A92&"!A:A"),0),3),"") ->  | E92: =IFERROR(INDEX(INDIRECT(A92&"!A:D"),MATCH(B92,INDIRECT(A92&"!A:A"),0),4),"") ->  | F92: 0.15 | G92: =ROUND(PRODUCT(E92:F92),2) -> 0.15 | I92: =$B$91 -> SEDUC 2.10
A93: SINAPI | B93: 88316 | C93: =IFERROR(INDEX(INDIRECT(A93&"!A:D"),MATCH(B93,INDIRECT(A93&"!A:A"),0),2),"") ->  | D93: =IFERROR(INDEX(INDIRECT(A93&"!A:D"),MATCH(B93,INDIRECT(A93&"!A:A"),0),3),"") ->  | E93: =IFERROR(INDEX(INDIRECT(A93&"!A:D"),MATCH(B93,INDIRECT(A93&"!A:A"),0),4),"") ->  | F93: 1 | G93: =ROUND(PRODUCT(E93:F93),2) -> 1 | I93: =$B$91 -> SEDUC 2.10
I94: =$B$91 -> SEDUC 2.10
B95: SEDUC 2.11 | C95: REMOÇÃO DE FECHADURA (Ref. ORSE 4859) | D95: UN | G95: =SUM(G96:G96) -> 0.25 | I95: =$B$95 -> SEDUC 2.11 | L95: REMOVER COMPLETAMENTE FECHADURAS METÁLICAS DE PORTAS DE FORMA MANUAL; APLICAR EM PEÇAS QUE SE APRESENTEM SEM CONDIÇÕES DE FUNCIONAMENTO OU INCOMPLETAS.
A96: SINAPI | B96: 88261 | C96: =IFERROR(INDEX(INDIRECT(A96&"!A:D"),MATCH(B96,INDIRECT(A96&"!A:A"),0),2),"") ->  | D96: =IFERROR(INDEX(INDIRECT(A96&"!A:D"),MATCH(B96,INDIRECT(A96&"!A:A"),0),3),"") ->  | E96: =IFERROR(INDEX(INDIRECT(A96&"!A:D"),MATCH(B96,INDIRECT(A96&"!A:A"),0),4),"") ->  | F96: 0.25 | G96: =ROUND(PRODUCT(E96:F96),2) -> 0.25 | I96: =$B$95 -> SEDUC 2.11
I97: =$B$95 -> SEDUC 2.11
B98: SEDUC 2.12 | C98: REMOÇÃO DE ESQUADRIA DE MADEIRA, COM OU SEM BATENTE (Ref. ORSE 0031) | D98: M² | G98: =SUM(G99:G100) -> 0.88 | I98: =$B$98 -> SEDUC 2.12 | L98: REMOVER ESQUADRIAS DE MADEIRA (PORTAS, JANELAS, ETC) SEM CONDIÇÕES DE USO OU QUE DEVAM SER SUBSTITUÍDAS EM PROJETO; DEVEM SER REMOVIDOS OS BATENTES, ALIZARES E MARCOS; PROCEDER DE FORMA MANUAL.
A99: SINAPI | B99: 88261 | C99: =IFERROR(INDEX(INDIRECT(A99&"!A:D"),MATCH(B99,INDIRECT(A99&"!A:A"),0),2),"") ->  | D99: =IFERROR(INDEX(INDIRECT(A99&"!A:D"),MATCH(B99,INDIRECT(A99&"!A:A"),0),3),"") ->  | E99: =IFERROR(INDEX(INDIRECT(A99&"!A:D"),MATCH(B99,INDIRECT(A99&"!A:A"),0),4),"") ->  | F99: 0.08 | G99: =ROUND(PRODUCT(E99:F99),2) -> 0.08 | I99: =$B$98 -> SEDUC 2.12
A100: SINAPI | B100: 88316 | C100: =IFERROR(INDEX(INDIRECT(A100&"!A:D"),MATCH(B100,INDIRECT(A100&"!A:A"),0),2),"") ->  | D100: =IFERROR(INDEX(INDIRECT(A100&"!A:D"),MATCH(B100,INDIRECT(A100&"!A:A"),0),3),"") ->  | E100: =IFERROR(INDEX(INDIRECT(A100&"!A:D"),MATCH(B100,INDIRECT(A100&"!A:A"),0),4),"") ->  | F100: 0.8 | G100: =ROUND(PRODUCT(E100:F100),2) -> 0.8 | I100: =$B$98 -> SEDUC 2.12
I101: =$B$98 -> SEDUC 2.12
B102: SEDUC 2.13 | C102: REMOÇÃO DE PINTURA LÁTEX (RASPAGEM E/OU LIXAMENTO E/OU ESCOVAÇÃO (Ref. ORSE 7725) | D102: M² | G102: =SUM(G103:G103) -> 0.4 | I102: =$B$102 -> SEDUC 2.13 | L102: REMOVER TODA PINTURA ANTIGA EXISTENTE POR MEIO DE RASPAGEM MANUAL COM VISTAS A DEIXAR A SUPERFÍCIE PRÓPRIA PARA APLICAÇÃO DE NOVA MASSA CORRIDA E NOVA PINTURA.
A103: SINAPI | B103: 88316 | C103: =IFERROR(INDEX(INDIRECT(A103&"!A:D"),MATCH(B103,INDIRECT(A103&"!A:A"),0),2),"") ->  | D103: =IFERROR(INDEX(INDIRECT(A103&"!A:D"),MATCH(B103,INDIRECT(A103&"!A:A"),0),3),"") ->  | E103: =IFERROR(INDEX(INDIRECT(A103&"!A:D"),MATCH(B103,INDIRECT(A103&"!A:A"),0),4),"") ->  | F103: 0.4 | G103: =ROUND(PRODUCT(E103:F103),2) -> 0.4 | I103: =$B$102 -> SEDUC 2.13
I104: =$B$102 -> SEDUC 2.13
B105: SEDUC 2.14 | C105: DEMOLIÇÃO DE PISO CIMENTADO SOBRE LASTRO DE CONCRETO (Ref. Seinfra 24.1 C1066) | D105: M² | G105: =SUM(G106:G107) -> 1.43 | I105: =$B$105 -> SEDUC 2.14 | L105: DEMOLIR MANUALMENTE PISO CIMENTADO EXISTENTE SEGUNDO INDICAÇÕES EM PROJETO, OU DE ACORDO COM ORIENTAÇÃO DA ADMINISTRAÇÃO, ATÉ COMPLETA EXPOSIÇÃO DE MATERIAL GRANULAR SOB O PISO.
A106: SINAPI | B106: 88316 | C106: =IFERROR(INDEX(INDIRECT(A106&"!A:D"),MATCH(B106,INDIRECT(A106&"!A:A"),0),2),"") ->  | D106: =IFERROR(INDEX(INDIRECT(A106&"!A:D"),MATCH(B106,INDIRECT(A106&"!A:A"),0),3),"") ->  | E106: =IFERROR(INDEX(INDIRECT(A106&"!A:D"),MATCH(B106,INDIRECT(A106&"!A:A"),0),4),"") ->  | F106: 1.3 | G106: =ROUND(PRODUCT(E106:F106),2) -> 1.3 | I106: =$B$105 -> SEDUC 2.14
A107: SINAPI | B107: 88309 | C107: =IFERROR(INDEX(INDIRECT(A107&"!A:D"),MATCH(B107,INDIRECT(A107&"!A:A"),0),2),"") ->  | D107: =IFERROR(INDEX(INDIRECT(A107&"!A:D"),MATCH(B107,INDIRECT(A107&"!A:A"),0),3),"") ->  | E107: =IFERROR(INDEX(INDIRECT(A107&"!A:D"),MATCH(B107,INDIRECT(A107&"!A:A"),0),4),"") ->  | F107: 0.13 | G107: =ROUND(PRODUCT(E107:F107),2) -> 0.13 | I107: =$B$105 -> SEDUC 2.14
I108: =$B$105 -> SEDUC 2.14
B109: SEDUC 2.16 | G109: =SUM(G110:G110) -> 0.6 | I109: =$B$109 -> SEDUC 2.16 | L109: 0
A110: SINAPI | B110: 88316 | C110: =IFERROR(INDEX(INDIRECT(A110&"!A:D"),MATCH(B110,INDIRECT(A110&"!A:A"),0),2),"") ->  | D110: =IFERROR(INDEX(INDIRECT(A110&"!A:D"),MATCH(B110,INDIRECT(A110&"!A:A"),0),3),"") ->  | E110: =IFERROR(INDEX(INDIRECT(A110&"!A:D"),MATCH(B110,INDIRECT(A110&"!A:A"),0),4),"") ->  | F110: 0.6 | G110: =ROUND(PRODUCT(E110:F110),2) -> 0.6 | I110: =$B$109 -> SEDUC 2.16
I111: =$B$109 -> SEDUC 2.16
B112: SEDUC 2.17 | C112: DEMOLIÇÃO DE PISO DE ALTA RESISTÊNCIA (Ref. SINAPI 09/17 - 73801/1) | D112: M2 | G112: =SUM(G113:G113) -> 1.5 | I112: =$B$112 -> SEDUC 2.17 | L112: 0
A113: SINAPI | B113: 88316 | C113: =IFERROR(INDEX(INDIRECT(A113&"!A:D"),MATCH(B113,INDIRECT(A113&"!A:A"),0),2),"") ->  | D113: =IFERROR(INDEX(INDIRECT(A113&"!A:D"),MATCH(B113,INDIRECT(A113&"!A:A"),0),3),"") ->  | E113: =IFERROR(INDEX(INDIRECT(A113&"!A:D"),MATCH(B113,INDIRECT(A113&"!A:A"),0),4),"") ->  | F113: 1.5 | G113: =ROUND(PRODUCT(E113:F113),2) -> 1.5 | I113: =$B$112 -> SEDUC 2.17
I114: =$B$112 -> SEDUC 2.17
B115: SEDUC 2.18 | C115: REMOÇÃO DE ACESSÓRIOS SANITÁRIOS (Ref. ORSE - 07216) | D115: UN | G115: =SUM(G116:G117) -> 0.7 | I115: =$B$115 -> SEDUC 2.18 | L115: 0
A116: SINAPI | B116: 88316 | C116: =IFERROR(INDEX(INDIRECT(A116&"!A:D"),MATCH(B116,INDIRECT(A116&"!A:A"),0),2),"") ->  | D116: =IFERROR(INDEX(INDIRECT(A116&"!A:D"),MATCH(B116,INDIRECT(A116&"!A:A"),0),3),"") ->  | E116: =IFERROR(INDEX(INDIRECT(A116&"!A:D"),MATCH(B116,INDIRECT(A116&"!A:A"),0),4),"") ->  | F116: 0.35 | G116: =ROUND(PRODUCT(E116:F116),2) -> 0.35 | I116: =$B$115 -> SEDUC 2.18
A117: SINAPI | B117: 88309 | C117: =IFERROR(INDEX(INDIRECT(A117&"!A:D"),MATCH(B117,INDIRECT(A117&"!A:A"),0),2),"") ->  | D117: =IFERROR(INDEX(INDIRECT(A117&"!A:D"),MATCH(B117,INDIRECT(A117&"!A:A"),0),3),"") ->  | E117: =IFERROR(INDEX(INDIRECT(A117&"!A:D"),MATCH(B117,INDIRECT(A117&"!A:A"),0),4),"") ->  | F117: 0.35 | G117: =ROUND(PRODUCT(E117:F117),2) -> 0.35 | I117: =$B$115 -> SEDUC 2.18
I118: =$B$115 -> SEDUC 2.18 | K118: =IF(A118="","",IF(E118=0,"ERRO","")) -> 
B119: SEDUC 2.19 | C119: DEMOLIÇÃO DE PISO CERÂMICO SOBRE LASTRO DE CONCRETO (Ref. SEINFRA - C1065 | D119: M² | G119: =SUM(G120:G121) -> 1.54 | I119: =$B$119 -> SEDUC 2.19 | K119: =IF(A119="","",IF(E119=0,"ERRO","")) -> 
A120: SINAPI | B120: 88316 | C120: =IFERROR(INDEX(INDIRECT(A120&"!A:D"),MATCH(B120,INDIRECT(A120&"!A:A"),0),2),"") ->  | D120: =IFERROR(INDEX(INDIRECT(A120&"!A:D"),MATCH(B120,INDIRECT(A120&"!A:A"),0),3),"") ->  | E120: =IFERROR(INDEX(INDIRECT(A120&"!A:D"),MATCH(B120,INDIRECT(A120&"!A:A"),0),4),"") ->  | F120: 1.4 | G120: =ROUND(PRODUCT(E120:F120),2) -> 1.4 | I120: =$B$119 -> SEDUC 2.19 | K120: =IF(A120="","",IF(E120=0,"ERRO","")) -> 
A121: SINAPI | B121: 88309 | C121: =IFERROR(INDEX(INDIRECT(A121&"!A:D"),MATCH(B121,INDIRECT(A121&"!A:A"),0),2),"") ->  | D121: =IFERROR(INDEX(INDIRECT(A121&"!A:D"),MATCH(B121,INDIRECT(A121&"!A:A"),0),3),"") ->  | E121: =IFERROR(INDEX(INDIRECT(A121&"!A:D"),MATCH(B121,INDIRECT(A121&"!A:A"),0),4),"") ->  | F121: 0.14 | G121: =ROUND(PRODUCT(E121:F121),2) -> 0.14 | I121: =$B$119 -> SEDUC 2.19 | K121: =IF(A121="","",IF(E121=0,"ERRO","")) -> 
I122: =$B$119 -> SEDUC 2.19
B123: SEDUC 2.20 | C123: DEMOLICAO DE CONCRETO SIMPLES (Ref. SINAPI 09/2017 - 73616) | D123: M³ | G123: =SUM(G124:G125) -> 14.3 | I123: =$B$123 -> SEDUC 2.20
A124: SINAPI | B124: 88309 | C124: =IFERROR(INDEX(INDIRECT(A124&"!A:D"),MATCH(B124,INDIRECT(A124&"!A:A"),0),2),"") ->  | D124: =IFERROR(INDEX(INDIRECT(A124&"!A:D"),MATCH(B124,INDIRECT(A124&"!A:A"),0),3),"") ->  | E124: =IFERROR(INDEX(INDIRECT(A124&"!A:D"),MATCH(B124,INDIRECT(A124&"!A:A"),0),4),"") ->  | F124: 1.3 | G124: =ROUND(PRODUCT(E124:F124),2) -> 1.3 | I124: =I123 -> SEDUC 2.20
A125: SINAPI | B125: 88316 | C125: =IFERROR(INDEX(INDIRECT(A125&"!A:D"),MATCH(B125,INDIRECT(A125&"!A:A"),0),2),"") ->  | D125: =IFERROR(INDEX(INDIRECT(A125&"!A:D"),MATCH(B125,INDIRECT(A125&"!A:A"),0),3),"") ->  | E125: =IFERROR(INDEX(INDIRECT(A125&"!A:D"),MATCH(B125,INDIRECT(A125&"!A:A"),0),4),"") ->  | F125: 13 | G125: =ROUND(PRODUCT(E125:F125),2) -> 13 | I125: =I124 -> SEDUC 2.20
I126: =I125 -> SEDUC 2.20
B127: SEDUC 2.21 | C127: RETIRADA DE PLACAS DIVISORIAS DE GRANILITE (Ref. SINAPI 07/2017 - 72221) | D127: M² | G127: =SUM(G128:G128) -> 1 | I127: =$B$127 -> SEDUC 2.21 | K127: =IF(A127="","",IF(E127=0,"ERRO","")) -> 
A128: SINAPI | B128: 88316 | C128: =IFERROR(INDEX(INDIRECT(A128&"!A:D"),MATCH(B128,INDIRECT(A128&"!A:A"),0),2),"") ->  | D128: =IFERROR(INDEX(INDIRECT(A128&"!A:D"),MATCH(B128,INDIRECT(A128&"!A:A"),0),3),"") ->  | E128: =IFERROR(INDEX(INDIRECT(A128&"!A:D"),MATCH(B128,INDIRECT(A128&"!A:A"),0),4),"") ->  | F128: 1 | G128: =ROUND(PRODUCT(E128:F128),2) -> 1 | I128: =$B$127 -> SEDUC 2.21 | K128: =IF(A128="","",IF(E128=0,"ERRO","")) -> 
I129: =$B$127 -> SEDUC 2.21 | K129: =IF(A129="","",IF(E129=0,"ERRO","")) -> 
B131: SEDUC 3 | C131: MOVIMENTO DE TERRA | I131: =$B$131 -> SEDUC 3
B132: SEDUC 3.02 | C132: ATERRO COM COMPACTAÇÃO MANUAL SEM CONTROLE (Ref. SEINFRA C0330) | D132: M³ | G132: =SUM(G133:G134) -> 2.8 | I132: =$B$132 -> SEDUC 3.02 | L132: ATERRAR E COMPACTAR MANUALMENTE CAIXÕES ENTRE BALDRAMES DA EDIFICAÇÃO COM MATERIAL DE EMPRÉSTIMO; DEVE SER EMPREGADO A DEVIDA COMPACTAÇÃO MANUAL DO VOLUME ATERRADO A CADA 25 CM, NO MÁXIMO; AS CAMADAS DEVEM SER MOLHADA E SOCADAS NO INTUITO DE EXPULSAR OS VAZIOS DO SOLO.
A133: SINAPI | B133: 88316 | C133: =IFERROR(INDEX(INDIRECT(A133&"!A:D"),MATCH(B133,INDIRECT(A133&"!A:A"),0),2),"") ->  | D133: =IFERROR(INDEX(INDIRECT(A133&"!A:D"),MATCH(B133,INDIRECT(A133&"!A:A"),0),3),"") ->  | E133: =IFERROR(INDEX(INDIRECT(A133&"!A:D"),MATCH(B133,INDIRECT(A133&"!A:A"),0),4),"") ->  | F133: 1.7 | G133: =ROUND(PRODUCT(E133:F133),2) -> 1.7 | I133: =$B$132 -> SEDUC 3.02
A134: iSINAPI | B134: 368 | C134: =IFERROR(INDEX(INDIRECT(A134&"!A:D"),MATCH(B134,INDIRECT(A134&"!A:A"),0),2),"") ->  | D134: =IFERROR(INDEX(INDIRECT(A134&"!A:D"),MATCH(B134,INDIRECT(A134&"!A:A"),0),3),"") ->  | E134: =IFERROR(INDEX(INDIRECT(A134&"!A:D"),MATCH(B134,INDIRECT(A134&"!A:A"),0),4),"") ->  | F134: 1.1 | G134: =ROUND(PRODUCT(E134:F134),2) -> 1.1 | I134: =$B$132 -> SEDUC 3.02
I135: =$B$132 -> SEDUC 3.02
B136: SEDUC 3.03 | C136: APILOAMENTO DE PISO OU FUNDO DE VALAS COM MACIÇO DE 30 A 60 KG (Ref. SEINFRA C0095) | D136: M² | G136: =SUM(G137:G137) -> 1.7 | I136: =$B$136 -> SEDUC 3.03 | L136: COMPACTAR MANUALMENTE O FUNDO DE VALAS ESCAVADAS A FIM DE REGULARIZAÇÃO PARA RECEBIMENTO DE LASTRO DE CONCRETO MAGRO.
A137: SINAPI | B137: 88316 | C137: =IFERROR(INDEX(INDIRECT(A137&"!A:D"),MATCH(B137,INDIRECT(A137&"!A:A"),0),2),"") ->  | D137: =IFERROR(INDEX(INDIRECT(A137&"!A:D"),MATCH(B137,INDIRECT(A137&"!A:A"),0),3),"") ->  | E137: =IFERROR(INDEX(INDIRECT(A137&"!A:D"),MATCH(B137,INDIRECT(A137&"!A:A"),0),4),"") ->  | F137: 1.7 | G137: =ROUND(PRODUCT(E137:F137),2) -> 1.7 | I137: =$B$136 -> SEDUC 3.03
I138: =$B$136 -> SEDUC 3.03
B139: SEDUC 3.04 | C139: CORTE MANUAL EM TERRA (Ref. SEINFRA C0930) | D139: M³ | G139: =SUM(G140:G141) -> 3 | I139: =$B$139 -> SEDUC 3.04
A140: SINAPI | B140: 88263 | C140: =IFERROR(INDEX(INDIRECT(A140&"!A:D"),MATCH(B140,INDIRECT(A140&"!A:A"),0),2),"") ->  | D140: =IFERROR(INDEX(INDIRECT(A140&"!A:D"),MATCH(B140,INDIRECT(A140&"!A:A"),0),3),"") ->  | E140: =IFERROR(INDEX(INDIRECT(A140&"!A:D"),MATCH(B140,INDIRECT(A140&"!A:A"),0),4),"") ->  | F140: 1.5 | G140: =ROUND(PRODUCT(E140:F140),2) -> 1.5 | I140: =$B$139 -> SEDUC 3.04
A141: SINAPI | B141: 88316 | C141: =IFERROR(INDEX(INDIRECT(A141&"!A:D"),MATCH(B141,INDIRECT(A141&"!A:A"),0),2),"") ->  | D141: =IFERROR(INDEX(INDIRECT(A141&"!A:D"),MATCH(B141,INDIRECT(A141&"!A:A"),0),3),"") ->  | E141: =IFERROR(INDEX(INDIRECT(A141&"!A:D"),MATCH(B141,INDIRECT(A141&"!A:A"),0),4),"") ->  | F141: 1.5 | G141: =ROUND(PRODUCT(E141:F141),2) -> 1.5 | I141: =$B$139 -> SEDUC 3.04
I142: =$B$139 -> SEDUC 3.04
B144: SEDUC 4 | C144: INFRAESTRUTURA | I144: =$B$144 -> SEDUC 4
B145: SEDUC 4.01 | C145: BALDRAME COM BLOCOS CERÂMICOS FURADOS NA HORIZONTAL DE 14X9X19 (ESPESSURA 14 CM - BLOCO DEITADO) E ARGAMASSA DE ASSENTAMENTO DE PREPARO MECÂNICO | D145: M² | G145: =SUM(G146:G149) -> 59.97 | I145: =$B$145 -> SEDUC 4.01 | L145: OS BALDRAMES DEVEM SER EXECUTADOS SOBRE AS VALAS PREENCHIDAS E DEVEM SER COMPOSTOS POR ALVENARIA DE TIJOLOS CERÂMICOS DE 6 FUROS, DIMENSÕES 14 X 9 X 19 CM; OS BLOCOS DEVEM SER DISPOSTOS NA HORIZONTAL DE MODO QUE A ESPESSURA DO BALDRAME RESULTE EM 14 CM; A ARGAMASSA DE ASSENTAMENTO DEVE SER PREPARADA EM BETONEIRA.
A146: iSINAPI | B146: 7267 | C146: =IFERROR(INDEX(INDIRECT(A146&"!A:D"),MATCH(B146,INDIRECT(A146&"!A:A"),0),2),"") ->  | D146: =IFERROR(INDEX(INDIRECT(A146&"!A:D"),MATCH(B146,INDIRECT(A146&"!A:A"),0),3),"") ->  | E146: =IFERROR(INDEX(INDIRECT(A146&"!A:D"),MATCH(B146,INDIRECT(A146&"!A:A"),0),4),"") ->  | F146: 56.62 | G146: =ROUND(PRODUCT(E146:F146),2) -> 56.62 | I146: SEDUC 4.01
A147: SINAPI | B147: 87292 | C147: =IFERROR(INDEX(INDIRECT(A147&"!A:D"),MATCH(B147,INDIRECT(A147&"!A:A"),0),2),"") ->  | D147: =IFERROR(INDEX(INDIRECT(A147&"!A:D"),MATCH(B147,INDIRECT(A147&"!A:A"),0),3),"") ->  | E147: =IFERROR(INDEX(INDIRECT(A147&"!A:D"),MATCH(B147,INDIRECT(A147&"!A:A"),0),4),"") ->  | F147: 0.014 | G147: =ROUND(PRODUCT(E147:F147),2) -> 0.01 | I147: SEDUC 4.01
A148: SINAPI | B148: 88309 | C148: =IFERROR(INDEX(INDIRECT(A148&"!A:D"),MATCH(B148,INDIRECT(A148&"!A:A"),0),2),"") ->  | D148: =IFERROR(INDEX(INDIRECT(A148&"!A:D"),MATCH(B148,INDIRECT(A148&"!A:A"),0),3),"") ->  | E148: =IFERROR(INDEX(INDIRECT(A148&"!A:D"),MATCH(B148,INDIRECT(A148&"!A:A"),0),4),"") ->  | F148: 1.5 | G148: =ROUND(PRODUCT(E148:F148),2) -> 1.5 | I148: SEDUC 4.01
A149: SINAPI | B149: 88316 | C149: =IFERROR(INDEX(INDIRECT(A149&"!A:D"),MATCH(B149,INDIRECT(A149&"!A:A"),0),2),"") ->  | D149: =IFERROR(INDEX(INDIRECT(A149&"!A:D"),MATCH(B149,INDIRECT(A149&"!A:A"),0),3),"") ->  | E149: =IFERROR(INDEX(INDIRECT(A149&"!A:D"),MATCH(B149,INDIRECT(A149&"!A:A"),0),4),"") ->  | F149: 1.84 | G149: =ROUND(PRODUCT(E149:F149),2) -> 1.84 | I149: SEDUC 4.01 | K149: =IF(A149="","",IF(E149=0,"ERRO","")) -> 
I150: SEDUC 4.01
B151: SEDUC 4.02 | C151: IMPERMEABILIZAÇÃO DE ALVENARIA DE EMBASAMENTO NO RESPALDO C/ARGAMASSA CIMENTO E AREIA S/ PENEIRAMENTO, TRAÇO 1:3, ESP.=2cm C/ ADITIVO IMPERMABILIZANTE | D151: M² | G151: =SUM(G152:G156) -> 11.84 | I151: =$B$151 -> SEDUC 4.02 | L151: 0
A152: iSEINFRA | B152: I0109 | C152: =IFERROR(INDEX(INDIRECT(A152&"!A:D"),MATCH(B152,INDIRECT(A152&"!A:A"),0),2),"") ->  | D152: =IFERROR(INDEX(INDIRECT(A152&"!A:D"),MATCH(B152,INDIRECT(A152&"!A:A"),0),3),"") ->  | E152: =IFERROR(INDEX(INDIRECT(A152&"!A:D"),MATCH(B152,INDIRECT(A152&"!A:A"),0),4),"") ->  | F152: 0.0243 | G152: =ROUND(PRODUCT(E152:F152),2) -> 0.02 | I152: =$B$151 -> SEDUC 4.02
A153: iSEINFRA | B153: I0805 | C153: =IFERROR(INDEX(INDIRECT(A153&"!A:D"),MATCH(B153,INDIRECT(A153&"!A:A"),0),2),"") ->  | D153: =IFERROR(INDEX(INDIRECT(A153&"!A:D"),MATCH(B153,INDIRECT(A153&"!A:A"),0),3),"") ->  | E153: =IFERROR(INDEX(INDIRECT(A153&"!A:D"),MATCH(B153,INDIRECT(A153&"!A:A"),0),4),"") ->  | F153: 9.72 | G153: =ROUND(PRODUCT(E153:F153),2) -> 9.72 | I153: SEDUC 4.02
A154: iSEINFRA | B154: I1249 | C154: =IFERROR(INDEX(INDIRECT(A154&"!A:D"),MATCH(B154,INDIRECT(A154&"!A:A"),0),2),"") ->  | D154: =IFERROR(INDEX(INDIRECT(A154&"!A:D"),MATCH(B154,INDIRECT(A154&"!A:A"),0),3),"") ->  | E154: =IFERROR(INDEX(INDIRECT(A154&"!A:D"),MATCH(B154,INDIRECT(A154&"!A:A"),0),4),"") ->  | F154: 0.4 | G154: =ROUND(PRODUCT(E154:F154),2) -> 0.4 | I154: SEDUC 4.02
A155: SINAPI | B155: 88309 | C155: =IFERROR(INDEX(INDIRECT(A155&"!A:D"),MATCH(B155,INDIRECT(A155&"!A:A"),0),2),"") ->  | D155: =IFERROR(INDEX(INDIRECT(A155&"!A:D"),MATCH(B155,INDIRECT(A155&"!A:A"),0),3),"") ->  | E155: =IFERROR(INDEX(INDIRECT(A155&"!A:D"),MATCH(B155,INDIRECT(A155&"!A:A"),0),4),"") ->  | F155: 0.75 | G155: =ROUND(PRODUCT(E155:F155),2) -> 0.75 | I155: SEDUC 4.02
A156: SINAPI | B156: 88316 | C156: =IFERROR(INDEX(INDIRECT(A156&"!A:D"),MATCH(B156,INDIRECT(A156&"!A:A"),0),2),"") ->  | D156: =IFERROR(INDEX(INDIRECT(A156&"!A:D"),MATCH(B156,INDIRECT(A156&"!A:A"),0),3),"") ->  | E156: =IFERROR(INDEX(INDIRECT(A156&"!A:D"),MATCH(B156,INDIRECT(A156&"!A:A"),0),4),"") ->  | F156: 0.95 | G156: =ROUND(PRODUCT(E156:F156),2) -> 0.95 | I156: SEDUC 4.02
I157: SEDUC 4.02
B158: SEDUC 5 | C158: SUPERESTRUTURA | I158: =$B$158 -> SEDUC 5
B159: SEDUC 5.01 | C159: CONCRETO ARMADO DOSADO 20 MPA INCL. MAT P/ 1 M3; PREPARO, LANÇAMENTO, ADENSAMENTO, FÔRMAS E ESCORAMENTO E ARMAÇÃO DE AÇO CA-50. (Ref. SINAPI 73346) | D159: M³ | G159: =SUM(G160:G171) -> 88.45 | I159: =$B$159 -> SEDUC 5.01 | L159: PREPARAR CONCRETO (CIMENTO CP-II-32, AREIA MÉDIA E BRITA 1) COM BETONEIRA ELÉTRICA DE MODO A GARANTIR A HOMOGENEIZAÇÃO COMPLETA DA MISTURA; LANÇAR CADA COMPONETE NA SEQUÊNCIA ADEQUADRA EM BETONEIRA; A RESISTÊNCIA MÍNIMA CARACTERÍSTICA DEVE SER DE 20 Mpa; UTILIZAR PEÇAS E TÁBUAS DE MADEIRA DE 2ª A 3º QUALIDADE, NÃO APARELHADAS PARA AS FORMAS; REAPROVEITÁ-LAS EM ATÉ 3 VEZES OBSERVANDO A ESTANQUEIDADE OFERECIDA; LANÇAR CONCRETO MANUALMENTE EVITANDO SEGREGAÇÃO DOS COMPONENTES E RESPEITANDO OS LIMITES MÁXIMOS DE ALTURA DE LANÇAMENTO EM PILARES; DEVE-SE UTILIZAR VIBRADOR PARA O DEVIDO ADENSAMENTO; TODAS AS PEÇAS DE CONCRETO DEVEM SER ARMADAS COM AÇO CA-50 DE MODO QUE SEJAM COMBATIDOS OS ESFORÇOS AOS QUAIS AS PEÇAS ESTÃO SUBMETIDAS.
A160: SINAPI | B160: 94964 | C160: =IFERROR(INDEX(INDIRECT(A160&"!A:D"),MATCH(B160,INDIRECT(A160&"!A:A"),0),2),"") ->  | D160: =IFERROR(INDEX(INDIRECT(A160&"!A:D"),MATCH(B160,INDIRECT(A160&"!A:A"),0),3),"") ->  | E160: =IFERROR(INDEX(INDIRECT(A160&"!A:D"),MATCH(B160,INDIRECT(A160&"!A:A"),0),4),"") ->  | F160: 1 | G160: =ROUND(PRODUCT(E160:F160),2) -> 1 | I160: =$B$159 -> SEDUC 5.01
A161: SINAPI | B161: 92873 | F161: 1 | G161: 1 | I161: SEDUC 5.01
A162: SINAPI | B162: 92263 | F162: =14/4 -> 3.5 | G162: 3.5 | I162: SEDUC 5.01
A163: SINAPI | B163: 92412 | F163: 14 | G163: 14 | I163: SEDUC 5.01
A164: SINAPI | B164: 88245 | F164: 6.15 | G164: 6.15 | I164: SEDUC 5.01
A165: iSINAPI | B165: 27 | F165: 5 | G165: 5 | I165: SEDUC 5.01
A166: iSINAPI | B166: 29 | F166: 10 | G166: 10 | I166: SEDUC 5.01
A167: iSINAPI | B167: 31 | F167: 12 | G167: 12 | I167: SEDUC 5.01
A168: iSINAPI | B168: 32 | F168: 10 | G168: 10 | I168: SEDUC 5.01
A169: iSINAPI | B169: 33 | F169: 12 | G169: 12 | I169: SEDUC 5.01
A170: iSINAPI | B170: 34 | F170: 12 | G170: 12 | I170: SEDUC 5.01
A171: iSINAPI | B171: 34562 | F171: 1.8 | G171: 1.8 | I171: SEDUC 5.01
I172: SEDUC 5.01
B173: SEDUC 5.02 | C173: CONCRETO SIMPLES DOSADO 20 MPA INCL. MAT P/ 1 M3; PREPARO, LANÇAMENTO, ADENSAMENTO, FÔRMAS E ESCORAMENTO (Ref. SINAPI 73346) | D173: M³ | G173: =SUM(G174:G177) -> 19.5 | I173: =$B$173 -> SEDUC 5.02 | L173: PREPARAR CONCRETO (CIMENTO CP-II-32, AREIA MÉDIA E BRITA 1) COM BETONEIRA ELÉTRICA DE MODO A GARANTIR A HOMOGENEIZAÇÃO COMPLETA DA MISTURA; LANÇAR CADA COMPONETE NA SEQUÊNCIA ADEQUADRA EM BETONEIRA; A RESISTÊNCIA MÍNIMA CARACTERÍSTICA DEVE SER DE 20 Mpa; UTILIZAR PEÇAS E TÁBUAS DE MADEIRA DE 2ª A 3º QUALIDADE, NÃO APARELHADAS PARA AS FORMAS; REAPROVEITÁ-LAS EM ATÉ 3 VEZES OBSERVANDO A ESTANQUEIDADE OFERECIDA; LANÇAR CONCRETO MANUALMENTE EVITANDO SEGREGAÇÃO DOS COMPONENTES E RESPEITANDO OS LIMITES MÁXIMOS DE ALTURA DE LANÇAMENTO EM PILARES; DEVE-SE UTILIZAR VIBRADOR PARA O DEVIDO ADENSAMENTO;
A174: SINAPI | B174: 94964 | C174: =IFERROR(INDEX(INDIRECT(A174&"!A:D"),MATCH(B174,INDIRECT(A174&"!A:A"),0),2),"") ->  | D174: =IFERROR(INDEX(INDIRECT(A174&"!A:D"),MATCH(B174,INDIRECT(A174&"!A:A"),0),3),"") ->  | E174: =IFERROR(INDEX(INDIRECT(A174&"!A:D"),MATCH(B174,INDIRECT(A174&"!A:A"),0),4),"") ->  | F174: 1 | G174: =ROUND(PRODUCT(E174:F174),2) -> 1 | I174: SEDUC 5.02
A175: SINAPI | B175: 92873 | C175: =IFERROR(INDEX(INDIRECT(A175&"!A:D"),MATCH(B175,INDIRECT(A175&"!A:A"),0),2),"") ->  | D175: =IFERROR(INDEX(INDIRECT(A175&"!A:D"),MATCH(B175,INDIRECT(A175&"!A:A"),0),3),"") ->  | E175: =IFERROR(INDEX(INDIRECT(A175&"!A:D"),MATCH(B175,INDIRECT(A175&"!A:A"),0),4),"") ->  | F175: 1 | G175: =ROUND(PRODUCT(E175:F175),2) -> 1 | I175: SEDUC 5.02
A176: SINAPI | B176: 92263 | C176: =IFERROR(INDEX(INDIRECT(A176&"!A:D"),MATCH(B176,INDIRECT(A176&"!A:A"),0),2),"") ->  | D176: =IFERROR(INDEX(INDIRECT(A176&"!A:D"),MATCH(B176,INDIRECT(A176&"!A:A"),0),3),"") ->  | E176: =IFERROR(INDEX(INDIRECT(A176&"!A:D"),MATCH(B176,INDIRECT(A176&"!A:A"),0),4),"") ->  | F176: =14/4 -> 3.5 | G176: =ROUND(PRODUCT(E176:F176),2) -> 3.5 | I176: SEDUC 5.02
A177: SINAPI | B177: 92412 | C177: =IFERROR(INDEX(INDIRECT(A177&"!A:D"),MATCH(B177,INDIRECT(A177&"!A:A"),0),2),"") ->  | D177: =IFERROR(INDEX(INDIRECT(A177&"!A:D"),MATCH(B177,INDIRECT(A177&"!A:A"),0),3),"") ->  | E177: =IFERROR(INDEX(INDIRECT(A177&"!A:D"),MATCH(B177,INDIRECT(A177&"!A:A"),0),4),"") ->  | F177: 14 | G177: =ROUND(PRODUCT(E177:F177),2) -> 14 | I177: SEDUC 5.02
E178: ='ORÇ. DESON.'!#REF! ->  | I178: SEDUC 5.02
B179: SEDUC 5.03 | C179: TRATAMENTO DE FISSURAS COM ARGAMASSA DE CIMENTO E AREIA TRAÇO 1:3 COM ADITIVO BIANCO OU SIMILAR (SEÇÃO ATÉ 5 X 5 CM) (Ref. ORSE 4114) | D179: M | G179: =SUM(G180:G182) ->  | I179: =$B$179 -> SEDUC 5.03 | L179: 0
A180: SINAPI | B180: 88309 | C180: =IFERROR(INDEX(INDIRECT(A180&"!A:D"),MATCH(B180,INDIRECT(A180&"!A:A"),0),2),"") ->  | D180: =IFERROR(INDEX(INDIRECT(A180&"!A:D"),MATCH(B180,INDIRECT(A180&"!A:A"),0),3),"") ->  | E180: =IFERROR(INDEX(INDIRECT(A180&"!A:D"),MATCH(B180,INDIRECT(A180&"!A:A"),0),4),"") ->  | F180: 0.25 | G180: =ROUND(PRODUCT(E180:F180),2) -> 0.25 | I180: =$B$179 -> SEDUC 5.03
A181: SINAPI | B181: 88316 | C181: =IFERROR(INDEX(INDIRECT(A181&"!A:D"),MATCH(B181,INDIRECT(A181&"!A:A"),0),2),"") ->  | D181: =IFERROR(INDEX(INDIRECT(A181&"!A:D"),MATCH(B181,INDIRECT(A181&"!A:A"),0),3),"") ->  | E181: =IFERROR(INDEX(INDIRECT(A181&"!A:D"),MATCH(B181,INDIRECT(A181&"!A:A"),0),4),"") ->  | F181: 0.5 | G181: =ROUND(PRODUCT(E181:F181),2) -> 0.5 | I181: =$B$179 -> SEDUC 5.03
A182: SINAPI | B182: 73549 | E182: ='ORÇ. DESON.'!#REF! ->  | G182: =ROUND(PRODUCT(E182:F182),2) ->  | I182: =$B$179 -> SEDUC 5.03
I183: =$B$179 -> SEDUC 5.03
B184: SEDUC 5.04 | C184: COLUNAS PARA SUSTENTAÇÃO DE COBERTURA EM CHAPA METÁLICA DE AÇO CARBONO ASTM-A36, E=3/16", INCLUSIVE 01 DEMÃO DE PRIMER ANTI-CORROSIVO (Ref. ORSE 04340) | D184: KG | G184: =SUM(G185:G185) -> 1 | I184: =$B$184 -> SEDUC 5.04 | L184: FABRICAR E INSTALAR PILARES METÁLICOS TRELIÇADOS PARA COBERTURAS METÁLICAS; INCLUI APLICAÇÃO DE PRIMER;
A185: iORSE | B185: 3466 | C185: =IFERROR(INDEX(INDIRECT(A185&"!A:D"),MATCH(B185,INDIRECT(A185&"!A:A"),0),2),"") ->  | D185: =IFERROR(INDEX(INDIRECT(A185&"!A:D"),MATCH(B185,INDIRECT(A185&"!A:A"),0),3),"") ->  | E185: =IFERROR(INDEX(INDIRECT(A185&"!A:D"),MATCH(B185,INDIRECT(A185&"!A:A"),0),4),"") ->  | F185: 1 | G185: =ROUND(PRODUCT(E185:F185),2) -> 1 | I185: =$B$184 -> SEDUC 5.04
I186: =$B$184 -> SEDUC 5.04
B187: SEDUC 5.05 | C187: CHAPA DE BASE PARA COLUNAS METÁLICAS - DIM. 0,20X0,20M A 0,40X0,40MX3/8", COM 04 REFORÇOS E ATÉ 08 FURAÇÕES, SOLDADA (Ref. ORSE 08345) | D187: KG | G187: =SUM(G188:G188) -> 1 | I187: =$B$187 -> SEDUC 5.05 | L187: EXECUTAR BASE DE LIGAÇÃO DE AÇO ENTRE PILAR METÁLICO E RESPECTIVA FUNDAÇÃO; FIXAÇÃO COM PARAFUSOS.
A188: iORSE | B188: 8589 | C188: =IFERROR(INDEX(INDIRECT(A188&"!A:D"),MATCH(B188,INDIRECT(A188&"!A:A"),0),2),"") ->  | D188: =IFERROR(INDEX(INDIRECT(A188&"!A:D"),MATCH(B188,INDIRECT(A188&"!A:A"),0),3),"") ->  | E188: =IFERROR(INDEX(INDIRECT(A188&"!A:D"),MATCH(B188,INDIRECT(A188&"!A:A"),0),4),"") ->  | F188: 1 | G188: =ROUND(PRODUCT(E188:F188),2) -> 1 | I188: =$B$187 -> SEDUC 5.05
I189: =$B$187 -> SEDUC 5.05
B190: SEDUC 5.06 | C190: (COMPOSIÇÃO REPESENTATIVA)CONCRETO ARMADO DOSADO 20 MPA INCL. MAT P/ 1 M3; PREPARO, LANÇAMENTO, ADENSAMENTO, FÔRMAS E ESCORAMENTO E ARMAÇÃO DE AÇO CA-50. (Ref. SINAPI 73346) | D190: M³ | G190: =SUM(G192+G194+G200+G215+G216+G214) ->  | I190: =$B$159 -> SEDUC 5.01 | L190: PREPARAR CONCRETO (CIMENTO CP-II-32, AREIA MÉDIA E BRITA 1) COM BETONEIRA ELÉTRICA DE MODO A GARANTIR A HOMOGENEIZAÇÃO COMPLETA DA MISTURA; LANÇAR CADA COMPONETE NA SEQUÊNCIA ADEQUADRA EM BETONEIRA; A RESISTÊNCIA MÍNIMA CARACTERÍSTICA DEVE SER DE 20 Mpa; UTILIZAR PEÇAS E TÁBUAS DE MADEIRA DE 2ª A 3º QUALIDADE, NÃO APARELHADAS PARA AS FORMAS; REAPROVEITÁ-LAS EM ATÉ 3 VEZES OBSERVANDO A ESTANQUEIDADE OFERECIDA; LANÇAR CONCRETO MANUALMENTE EVITANDO SEGREGAÇÃO DOS COMPONENTES E RESPEITANDO OS LIMITES MÁXIMOS DE ALTURA DE LANÇAMENTO EM PILARES; DEVE-SE UTILIZAR VIBRADOR PARA O DEVIDO ADENSAMENTO; TODAS AS PEÇAS DE CONCRETO DEVEM SER ARMADAS COM AÇO CA-50 DE MODO QUE SEJAM COMBATIDOS OS ESFORÇOS AOS QUAIS AS PEÇAS ESTÃO SUBMETIDAS.
A192: SINAPI | B192: 94963 | C192: =IFERROR(INDEX(INDIRECT(A192&"!A:D"),MATCH(B192,INDIRECT(A192&"!A:A"),0),2),"") ->  | D192: =IFERROR(INDEX(INDIRECT(A192&"!A:D"),MATCH(B192,INDIRECT(A192&"!A:A"),0),3),"") ->  | E192: =IFERROR(INDEX(INDIRECT(A192&"!A:D"),MATCH(B192,INDIRECT(A192&"!A:A"),0),4),"") ->  | F192: 1 | G192: =ROUND(PRODUCT(E192:F192),2) -> 1 | I192: =$B$159 -> SEDUC 5.01
C194: LANÇAMENTO DE CONCRETO SIMPLES FABRICADO NA OBRA, INCLUSIVE ADENSAMENTO E ACABAMENTO EM PEÇAS DA SUPERESTRUTURA (Ref. ORSE 07692 - Dez/2018) | D194: M³ | E194: =SUM(G195:G198) ->  | F194: 1 | G194: =ROUND(PRODUCT(E194:F194),2) ->  | I194: =$B$159 -> SEDUC 5.01
A195: SINAPI | B195: 88316 | E195: ='ORÇ. DESON.'!#REF! ->  | G195: =ROUND(PRODUCT(E195:F195),2) ->  | I195: =$B$159 -> SEDUC 5.01
A196: SINAPI | B196: 88309 | C196: =IFERROR(INDEX(INDIRECT(A196&"!A:D"),MATCH(B196,INDIRECT(A196&"!A:A"),0),2),"") ->  | D196: =IFERROR(INDEX(INDIRECT(A196&"!A:D"),MATCH(B196,INDIRECT(A196&"!A:A"),0),3),"") ->  | E196: =IFERROR(INDEX(INDIRECT(A196&"!A:D"),MATCH(B196,INDIRECT(A196&"!A:A"),0),4),"") ->  | F196: 0.36 | G196: =ROUND(PRODUCT(E196:F196),2) -> 0.36 | I196: =$B$159 -> SEDUC 5.01
A197: SINAPI | B197: 88262 | C197: =IFERROR(INDEX(INDIRECT(A197&"!A:D"),MATCH(B197,INDIRECT(A197&"!A:A"),0),2),"") ->  | D197: =IFERROR(INDEX(INDIRECT(A197&"!A:D"),MATCH(B197,INDIRECT(A197&"!A:A"),0),3),"") ->  | E197: =IFERROR(INDEX(INDIRECT(A197&"!A:D"),MATCH(B197,INDIRECT(A197&"!A:A"),0),4),"") ->  | F197: 0.36 | G197: =ROUND(PRODUCT(E197:F197),2) -> 0.36 | I197: =$B$159 -> SEDUC 5.01
A198: SINAPI | B198: 88245 | C198: =IFERROR(INDEX(INDIRECT(A198&"!A:D"),MATCH(B198,INDIRECT(A198&"!A:A"),0),2),"") ->  | D198: =IFERROR(INDEX(INDIRECT(A198&"!A:D"),MATCH(B198,INDIRECT(A198&"!A:A"),0),3),"") ->  | E198: =IFERROR(INDEX(INDIRECT(A198&"!A:D"),MATCH(B198,INDIRECT(A198&"!A:A"),0),4),"") ->  | F198: 0.18 | G198: =ROUND(PRODUCT(E198:F198),2) -> 0.18 | I198: =$B$159 -> SEDUC 5.01
C200: FORMA PLANA PARA ESTRUTURAS, EM COMPENSADO RESINADO DE 12MM, 05 USOS, INCLUSIVE ESCORAMENTO - REVISADA 07..2015 | D200: M² | E200: =SUM(G201:G210) -> 5.29 | F200: =14/5 -> 2.8 | G200: =ROUND(PRODUCT(E200:F200),2) -> 14.81
A201: SINAPI | B201: 88262 | C201: =IFERROR(INDEX(INDIRECT(A201&"!A:D"),MATCH(B201,INDIRECT(A201&"!A:A"),0),2),"") ->  | D201: =IFERROR(INDEX(INDIRECT(A201&"!A:D"),MATCH(B201,INDIRECT(A201&"!A:A"),0),3),"") ->  | E201: =IFERROR(INDEX(INDIRECT(A201&"!A:D"),MATCH(B201,INDIRECT(A201&"!A:A"),0),4),"") ->  | F201: 0.973 | G201: =ROUND(PRODUCT(E201:F201),2) -> 0.97
A202: SINAPI | B202: 88316 | F202: 1.35 | G202: 1.35
A203: iSINAPI | B203: 1347 | F203: 0.234 | G203: 0.23
A204: iSINAPI | B204: 4513 | F204: 1.227 | G204: 1.23
A205: iSINAPI | B205: 333 | F205: 0.15 | G205: 0.15
A206: iSINAPI | B206: 2692 | F206: 0.02 | G206: 0.02
A207: iSINAPI | B207: 4509 | F207: 1.089 | G207: 1.09
A208: iSINAPI | B208: 5068 | F208: 0.025 | G208: 0.03
A209: iSINAPI | B209: 5069 | F209: 0.1 | G209: 0.1
A210: iSINAPI | B210: 6193 | F210: 0.122 | G210: 0.12
A213: SINAPI | B213: 92263 | C213: =IFERROR(INDEX(INDIRECT(A213&"!A:D"),MATCH(B213,INDIRECT(A213&"!A:A"),0),2),"") ->  | D213: =IFERROR(INDEX(INDIRECT(A213&"!A:D"),MATCH(B213,INDIRECT(A213&"!A:A"),0),3),"") ->  | E213: =IFERROR(INDEX(INDIRECT(A213&"!A:D"),MATCH(B213,INDIRECT(A213&"!A:A"),0),4),"") ->  | F213: =14/4 -> 3.5 | G213: =ROUND(PRODUCT(E213:F213),2) -> 3.5 | I213: =$B$159 -> SEDUC 5.01
... 878 more rows

Sheet ETAPAS DA OBRA (hidden)
A1: ADMINISTRAÇÃO DA OBRA
A2: SERVIÇOS PRELIMINARES
A3: DEMOLIÇÕES E RETIRADAS
A4: MOVIMENTO DE TERRA
A5: INFRAESTRUTURA
A6: SUPERESTRUTURA
A7: PAREDES E DIVISORIAS
A8: COBERTURAS
A9: INSTALAÇÕES HIDRÁULICAS
A10: INSTALAÇÕES SANITÁRIAS
A11: INSTALAÇÕES ELÉTRICAS
A12: INSTALAÇÕES DE GÁS
A13: DRENAGEM PLUVIAL
A14: ESQUADRIAS
A15: PAVIMENTAÇÃO
A16: REVESTIMENTOS
A17: FORROS
A18: PINTURAS
A19: COMBATE A INCÊNDIO E PÂNICO
A20: BANCADAS E DIVISÓRIAS
A21: LOUÇAS E ACESSÓRIOS
A22: SEVIRÇOS DIVERSOS
A23: LIMPEZA DA OBRA
